Cogmind - Beta 15 @@@ ROGUE MODE // 2025.09.24 @ 16:05:58 Player: Anting Result: Escaped! Performance ------------- Evolutions (9) 4500 Regions Visited (33) 6600 Robots Destroyed (410) 2050 Value Destroyed (17380) 17380 Prototype IDs (75) 1500 Alien Tech Used (4) 800 Bonus (13930) 13930 TOTAL SCORE: 46760 Bonus ------- High Alert Combat Kills 1672 Follower Combat Kills 1805 Network Hubs Disabled 400 Met Data Miner 300 Met Zhirov 300 Met Warlord at Base 500 MAIN.C Attacked Warlord 500 Warlord Defense Kills 134 Built Enhanced Grunts 300 Met R17 at Cetus 500 Found Hidden Lab 3000 Hacked Protovariant 500 Met R17 at Research 2000 Met Warlord at Research 2000 Scanned by Researcher 500 Win 3000 Friendly Fire -3481 Cogmind --------- Core Integrity 1230/1600 Matter 300/300 Energy 99/100 System Corruption 10% Temperature Cool (0) Movement Core (50) Location To Epsilon Eridani Parts ------- > --- POWER (2) -------- (None) > --- PROPULSION (8) --- (None) > --- UTILITY (13) ----- Spectral Analyzer Advanced Signal Interpreter Experimental Core Analyzer Experimental Core Analyzer > --- WEAPON (2) ------- (None) > --- INVENTORY (5) ---- Light Quantum Reactor Advanced Energy Well (500) Improved Potential Cannon Peak State ------------ > --- POWER ------------ Vortex Chain Reactor > --- PROPULSION ------- Combat Linear Gravjet Combat Linear Gravjet Combat Linear Gravjet Combat Linear Gravjet Combat Linear Gravjet Combat Linear Gravjet Combat Linear Gravjet Combat Linear Gravjet > --- UTILITY ---------- High-capacity Storage Unit Improved Energy Well Advanced Energy Well Spectral Analyzer Advanced Sensor Array Advanced Signal Interpreter Experimental Core Analyzer Experimental Transmission Jammer Experimental Cloaking Device Experimental System Shield Quantum Router > --- WEAPON ----------- Improved Potential Cannon > --- INVENTORY -------- Improved Gyrokinetic Inverter Improved Gyrokinetic Inverter Cooled Linear Gravjet Advanced Energy Well Experimental Core Analyzer Experimental Weapon Cycler Advanced Reaction Control System Advanced Force Field Advanced Hacking Suite Core Reset Matrix Heavy Quantum Rifle Compact HERF Cannon Compact HERF Cannon Long-range Phase Cannon Enhanced Nova Cannon Enhanced Nova Cannon Fusion Bomb Launcher Vibroblade [Rating: 216] Favorites ----------- Power Deuterium Engine Engine Deuterium Engine Power Core Micro Fission Core Reactor Heavy Antimatter Reactor Propulsion Light Treads Treads Light Treads Leg Enhanced Flexi-carbon Leg Wheel Wheel Hover Unit Combat Linear Gravjet Utility High-capacity Storage Unit Device Cooling System Storage High-capacity Storage Unit Processor Core Analyzer Hackware Makeshift Hacking Suite Protection Hardened Medium Armor Plating Weapon Neutron Cannon Energy Gun Improved EM Shotgun Energy Cannon Neutron Cannon Ballistic Gun Light Assault Rifle Ballistic Cannon Light Cannon Launcher Compact Tesla Bomb Launcher Special Weapon Advanced Remote Datajack Slashing Weapon Chainsword Piercing Weapon Makeshift Spear Build | -11 -10 -10 -9 -9 -8 -7 -7 -7 -7 -6 -6 -6 -6 -6 -6 -6 -6 -5 -5 -5 -5 -4 -4 -4 -4 -4 -3 -3 -3 -3 -2 -2 -1 ------- Run | Yrd Mat Min Mat Min Mat Fac Low Low Dat Pro Fac Was Fac Ext Cet Arc Hub Fac Upp Upp War Pro Fac Upp Upp Zhi Pro Res Arm Lab Res Tes Acc Slots Evolved 18 | . . . 2 . 2 2 . . . . 2 . . . . . . 2 . . . . 2 . . . . 2 . . 2 . 2 Power 1 | . . . . . . 1 . . . . . . . . . . . . . . . . . . . . . . . . . . . Propulsion 6 | . . . 1 . 1 . . . . . . . . . . . . . . . . . . . . . . 2 . . 2 . . Utility 11 | . . . 1 . 1 1 . . . . 2 . . . . . . 2 . . . . 2 . . . . . . . . . 2 Weapon . | . . . . . . . . . . . . . . . . . . . . . . . . . . . . . . . . . . Parts Attached 330 | 6 9 4 16 1 14 13 2 6 14 8 30 8 13 11 9 7 2 15 1 2 16 4 7 2 3 2 2 12 34 2 29 21 5 Power 42 | 1 . 1 . . 1 1 . . 1 4 4 1 1 . 2 . . 3 . . 4 . . . 2 1 . . 5 . 4 4 2 Engine 10 | 1 . 1 . . . 1 . . 1 1 3 . . . . . . 1 . . . . . . 1 . . . . . . . . Core 4 | . . . . . 1 . . . . . . 1 . . . . . 2 . . . . . . . . . . . . . . . Reactor 28 | . . . . . . . . . . 3 1 . 1 . 2 . . . . . 4 . . . 1 1 . . 5 . 4 4 2 Propulsion 63 | 2 3 . 5 1 4 3 . 2 9 2 5 3 3 5 2 . . 1 . . . 3 . . . . . . 6 1 2 1 . Treads 30 | . . . 5 1 4 3 . 2 5 . . . . 4 2 . . 1 . . . 3 . . . . . . . . . . . Leg 19 | 2 3 . . . . . . . 4 2 4 . 3 1 . . . . . . . . . . . . . . . . . . . Wheel 1 | . . . . . . . . . . . . 1 . . . . . . . . . . . . . . . . . . . . . Hover 13 | . . . . . . . . . . . 1 2 . . . . . . . . . . . . . . . . 6 1 2 1 . Flight . | . . . . . . . . . . . . . . . . . . . . . . . . . . . . . . . . . . Utility 157 | 1 3 1 5 . 3 5 2 3 2 2 15 3 7 3 5 5 2 9 1 1 10 . 6 2 1 . . 6 17 1 22 11 3 Device 86 | . 1 1 2 . 2 1 2 2 . . 12 . 4 1 . 4 2 4 1 1 7 . 3 1 1 . . 5 9 . 13 7 . Storage 13 | 1 2 . 1 . . 1 . . . . . 1 . 1 . . . 1 . . 1 . 1 . . . . . 1 . . 2 . Processor 18 | . . . 1 . . . . . . . 1 . 1 . . . . 1 . . 2 . 1 1 . . . 1 . . 8 . 1 Hackware 14 | . . . . . . 1 . . . . 1 . . . . 1 . 2 . . . . . . . . . . 6 . 1 1 1 Protection 26 | . . . 1 . 1 2 . 1 2 2 1 2 2 1 5 . . 1 . . . . 1 . . . . . 1 1 . 1 1 Artifact . | . . . . . . . . . . . . . . . . . . . . . . . . . . . . . . . . . . Weapon 68 | 2 3 2 6 . 6 4 . 1 2 . 6 1 2 3 . 2 . 2 . 1 2 1 1 . . 1 2 6 6 . 1 5 . Energy Gun 11 | . . . 5 . . . . . . . 1 . . . . 1 . . . . 1 . . . . . 1 1 . . . 1 . Energy Cannon 37 | . . . . . 4 4 . . 1 . 4 1 2 2 . . . 2 . 1 . 1 1 . . . 1 3 5 . 1 4 . Ballistic Gun 7 | 2 1 2 . . 1 . . . . . . . . . . 1 . . . . . . . . . . . . . . . . . Ballistic Cannon 1 | . 1 . . . . . . . . . . . . . . . . . . . . . . . . . . . . . . . . Launcher 8 | . 1 . 1 . 1 . . 1 . . 1 . . 1 . . . . . . . . . . . . . 2 . . . . . Special Weapon 1 | . . . . . . . . . . . . . . . . . . . . . . . . . . . . . 1 . . . . Impact Weapon . | . . . . . . . . . . . . . . . . . . . . . . . . . . . . . . . . . . Slashing Weapon 1 | . . . . . . . . . 1 . . . . . . . . . . . . . . . . . . . . . . . . Piercing Weapon 2 | . . . . . . . . . . . . . . . . . . . . . 1 . . . . 1 . . . . . . . Special Melee Weapon . | . . . . . . . . . . . . . . . . . . . . . . . . . . . . . . . . . . Unidentified Prototypes 50 | . . . 2 . 2 . . . 1 . 8 2 1 . 2 . . 2 . . 7 . . . . 1 . 3 2 3 3 10 1 Corrupted Parts 26 | . . . . . . . . . 4 5 2 1 1 . 3 . . 2 . . 2 3 . . . . 1 . . 1 . 1 . System Corruption 182 | . . . . . . . . . 23 37 3 11 6 . 33 . . 12 . . 12 22 . . . . 8 . . 10 . 5 . Parts Lost 96 | . 1 2 1 . 1 3 . 2 1 6 15 1 . . . . 5 3 . . 2 . 2 1 2 . 4 . 13 . 1 17 13 Power 17 | . . 1 . . . . . . . 2 2 . . . . . . 2 . . . . . . . . 1 . 3 . . 6 . Propulsion 22 | . . . 1 . . 1 . . . . 5 . . . . . . . . . . . . 1 1 . . . 3 . . 2 8 Utility 41 | . . 1 . . . 1 . 2 1 2 6 . . . . . 3 1 . . 1 . 2 . . . 1 . 6 . 1 8 5 Weapon 16 | . 1 . . . 1 1 . . . 2 2 1 . . . . 2 . . . 1 . . . 1 . 2 . 1 . . 1 . Highest Loss Streak 8 | . 1 1 1 . 1 2 . 2 1 3 8 1 . . . . 4 1 . . 2 . 2 1 1 . 3 . 8 . 1 7 8 To Critical Strikes 2 | . . . . . . . . . . . . . . . . . . . . . . . . 1 1 . . . . . . . . Average Backups 16 | 3 13 14 19 20 19 19 19 18 17 19 19 9 19 18 17 16 16 14 16 16 15 13 14 15 14 18 16 17 17 16 17 16 8 Power 1 | . 1 . . . . . 1 1 1 2 2 1 2 2 1 2 2 2 2 2 2 2 2 2 2 2 1 1 1 1 1 . . Propulsion 3 | 1 4 6 5 7 9 7 6 6 4 3 2 . . 1 1 2 2 2 3 2 3 3 3 2 1 1 1 . . 1 1 1 1 Utility 6 | . 1 3 6 7 4 5 5 5 4 8 7 3 9 8 9 9 8 6 7 7 7 6 6 8 9 12 11 11 10 5 7 6 3 Weapon 4 | . 5 5 7 6 5 5 6 6 5 5 6 4 7 7 4 3 4 3 4 3 3 2 2 2 1 2 1 4 5 6 5 5 2 Tool/Special . | . . . . . . . . . . . . . . . . . . . . . . . . . . . . . . . . . . Unused Backups 61 | . 1 2 9 2 . 3 . 1 3 . 4 3 2 1 5 . . 4 . . 2 . . 1 . 2 . 2 5 1 . 2 6 Power 4 | . . 1 . . . . . . . . . 1 . . . . . 1 . . . . . . . . . . . . . . 1 Propulsion 7 | . . . 1 . . . . . . . 1 . 1 1 1 . . . . . . . . . . . . . . . . . 2 Utility 29 | . . . 2 1 . 1 . 1 3 . 2 1 1 . 3 . . 3 . . 2 . . 1 . 2 . 1 4 1 . . . Weapon 20 | . 1 1 6 1 . 2 . . . . 1 1 . . 1 . . . . . . . . . . . . 1 1 . . 2 2 Tool/Special 1 | . . . . . . . . . . . . . . . . . . . . . . . . . . . . . . . . . 1 Average Slot Usage (%) 90 | . 98 99 99 100 99 97 100 98 96 86 91 69 98 99 91 74 85 84 88 88 86 80 82 77 77 72 75 79 79 92 91 90 62 Engine 4 | . 14 13 11 11 5 5 7 7 12 10 5 10 . . . . . . . . . . . . 1 3 . . . . . . . Core 2 | . . . . . 3 7 7 7 1 . . . 6 6 3 . . . 11 11 7 5 5 5 4 . . . . . . . . Reactor 3 | . . . . . . . . . . 2 6 . 5 6 8 13 13 9 . . 2 5 5 5 4 6 10 9 8 9 8 5 2 Treads 13 | . . . 30 33 35 30 30 30 29 . . . . 4 18 13 13 10 11 11 11 11 10 10 9 10 10 14 11 . . . . Leg 5 | . 28 28 1 . . . . . . 30 25 7 15 17 . . . . . . . . . . . . . . . . . . . Hover 2 | . . . . . . . . . . . . 7 3 . . . . . . . . . . . . . . . 2 28 33 33 23 Device 16 | . 12 14 11 11 17 12 23 21 18 11 17 6 14 20 20 19 30 19 23 22 22 16 17 14 10 9 16 22 21 19 18 13 1 Storage 7 | . 14 14 11 11 9 8 7 7 7 7 6 2 6 6 6 6 6 5 5 5 6 5 6 5 9 10 6 4 3 4 4 6 6 Processor 5 | . . . 4 . . . . . . . 3 6 3 . . . . 2 5 5 8 11 14 15 15 15 15 14 14 14 13 13 14 Hackware 1 | . . . . . . 2 . . . . 3 6 6 6 6 6 2 7 5 5 1 . . . . . . . . 4 2 5 9 Protection 7 | . . . 5 11 8 12 7 7 8 10 8 3 12 12 13 2 6 13 11 11 11 11 9 10 10 10 8 4 3 3 4 2 2 Energy Gun 3 | . . . 19 22 6 . . . . . . 10 1 . . 3 . . . . . . . . . . 1 4 . . . 1 1 Energy Cannon 7 | . . . . . 10 15 15 14 13 11 9 1 11 12 11 4 12 10 10 10 10 5 5 5 4 . 4 4 8 5 4 4 . Ballistic Gun 2 | . 18 18 2 . . . . . . . . . . . . 3 . . . . . . . . . . . . . . . . . Peak Build Rating 216 | 6 10 13 22 21 27 36 37 41 67 67 86 79 82 82 113 110 111 128 117 124 139 139 152 141 141 141 142 170 176 177 198 216 178 Average Rating 83 | 4 9 12 19 20 25 31 35 37 40 64 75 46 77 79 97 97 109 118 112 114 124 134 145 136 138 130 134 162 163 157 186 199 151 On Entrance 91 | . 6 10 11 21 21 25 36 35 38 67 62 67 67 81 74 110 110 89 114 114 116 128 136 140 141 138 141 139 169 151 175 191 177 Naked Turns . | . . . . . . . . . . . . . . . . . . . . . . . . . . . . . . . . . . Heaviest Build 131 | 13 30 34 68 65 70 84 77 87 93 93 104 75 102 102 111 111 112 121 100 89 115 98 101 96 110 121 121 131 121 113 127 119 75 Greatest Support 240 | 20 20 20 60 60 83 83 80 90 112 112 112 72 79 110 160 160 160 160 150 160 160 160 155 160 160 160 160 240 240 84 112 112 98 Greatest Overweight (x) 10 | . 1 1 1 1 . 1 . 1 1 . 1 6 10 10 . . 1 . . . . . . . . . . . 1 1 1 1 1 Average Overweight (x) . | . . 1 . 1 . . . . . . . 1 9 5 . . . . . . . . . . . . . . . . . . . Largest Inventory Capacity 20 | 8 15 15 20 20 20 20 20 20 20 20 20 20 20 20 20 20 20 20 20 20 20 20 20 20 20 20 20 20 20 20 20 20 20 Average Capacity 19 | 6 14 15 19 20 20 20 20 20 20 20 20 12 20 20 20 20 20 20 20 20 20 20 20 20 20 20 20 20 19 20 20 20 11 Most Carried 20 | 5 15 15 20 20 20 20 20 20 20 20 20 20 20 20 20 20 20 20 20 20 20 20 20 20 20 20 20 20 20 20 20 20 20 Average Carried 18 | 3 13 14 19 19 19 19 20 19 18 19 19 10 19 19 19 19 19 18 19 19 19 18 19 19 17 19 18 18 18 17 19 18 10 Final Capacity 20 | 8 15 15 20 20 20 20 20 20 20 20 20 20 20 20 20 20 20 20 20 20 20 20 20 20 20 20 20 20 20 20 20 20 5 Final Carried 20 | 4 15 15 20 20 20 20 20 20 20 19 19 20 20 20 20 20 19 20 20 20 20 20 19 18 20 19 16 20 20 20 20 18 4 Class Distribution -------------------- 46% | Scavenger-Mutant 31% | Mutant 13% | Scavenger-Skirmisher Dominant Class ---------------- Mutant | -10/Materials Mutant | -10/Mines Mutant | -9/Materials Mutant | -9/Mines Scavenger-Mutant | -8/Materials Scavenger-Mutant | -7/Factory Scavenger-Mutant | -7/Lower Caves Mutant | -7/Lower Caves Mutant | -7/Data Miner Scavenger-Mutant | -6/Proximity Caves Scavenger-Mutant | -6/Factory Mutant | -6/Waste Scavenger-Mutant | -6/Factory Scavenger-Mutant | -6/Extension Scavenger-Mutant | -6/Cetus Scavenger-Mutant | -6/Archives Scavenger-Mutant | -6/Hub_04(d) Scavenger-Mutant | -5/Factory Scavenger-Mutant | -5/Upper Caves Scavenger-Mutant | -5/Upper Caves Scavenger-Mutant | -5/Warlord Scavenger-Mutant | -4/Proximity Caves Scavenger-Skirmisher | -4/Factory Scavenger-Skirmisher | -4/Upper Caves Scavenger-Skirmisher | -4/Upper Caves Assassin | -4/Zhirov Mutant | -3/Proximity Caves Scavenger-Skirmisher | -3/Research Scavenger-Skirmisher | -3/Armory Mutant | -3/Lab Hacker-Scout | -2/Research Hacker-Scout | -2/Testing Hacker-Mutant | -1/Access Resources | -11 -10 -10 -9 -9 -8 -7 -7 -7 -7 -6 -6 -6 -6 -6 -6 -6 -6 -5 -5 -5 -5 -4 -4 -4 -4 -4 -3 -3 -3 -3 -2 -2 -1 ----------- Run | Yrd Mat Min Mat Min Mat Fac Low Low Dat Pro Fac Was Fac Ext Cet Arc Hub Fac Upp Upp War Pro Fac Upp Upp Zhi Pro Res Arm Lab Res Tes Acc Matter Collected 9186 | 246 450 187 203 75 302 137 104 250 160 133 778 217 173 421 286 351 293 472 117 146 325 30 495 274 249 55 227 142 846 . 572 463 7 Remotely 10 | . . . . . . . . . . . . . . . . . . . . . . . . . . . . 10 . . . . . Salvage Created 18931 | 108 793 184 1004 746 1719 439 75 382 417 475 1254 123 133 395 750 453 265 1603 187 156 74 339 1070 534 290 289 400 855 1535 . 475 1333 76 Parts 905 | 8 54 12 53 43 97 15 3 13 20 22 53 3 4 14 35 29 17 86 15 10 3 13 51 27 15 5 12 24 70 . 22 55 2 Haulers Intercepted 23 | . 2 . 5 . 3 . . . . . 2 . . 1 . . . 1 . . . . 1 . . . . 4 . . 3 1 . Recyclers Shooed 15 | 1 2 1 5 . . . . . . . . . . 1 . . . 3 . . . . 1 . . . . 1 . . . . . Parts Field Recycled . | . . . . . . . . . . . . . . . . . . . . . . . . . . . . . . . . . . Retrieved Matter . | . . . . . . . . . . . . . . . . . . . . . . . . . . . . . . . . . . Parts Self-Destructed 56 | . . . . . . . . 6 . 8 . . . . . . . . 12 11 . 2 . . 5 3 9 . . . . . . Prevented 76 | . . . . . . . 3 2 . 12 . . . . . . . . 3 5 . 12 . 24 10 . 5 . . . . . . Kills | -11 -10 -10 -9 -9 -8 -7 -7 -7 -7 -6 -6 -6 -6 -6 -6 -6 -6 -5 -5 -5 -5 -4 -4 -4 -4 -4 -3 -3 -3 -3 -2 -2 -1 ------- Run | Yrd Mat Min Mat Min Mat Fac Low Low Dat Pro Fac Was Fac Ext Cet Arc Hub Fac Upp Upp War Pro Fac Upp Upp Zhi Pro Res Arm Lab Res Tes Acc Combat Hostiles Destroyed 292 | . 17 8 19 16 23 8 1 9 4 13 19 . 3 2 7 1 4 26 6 4 1 5 13 6 6 . 7 7 25 . 9 22 1 Guns 52 | . 10 5 14 16 3 . . . . . . . . . . . . . . . . . . . . . 3 . . . . 1 . Cannons 98 | . 5 3 . . 12 6 . 2 . 6 6 . 3 1 1 1 4 11 1 . 1 . 7 . . . 1 2 18 . 2 5 . AOE 100 | . 2 . 4 . 7 1 . 7 . 6 11 . . 1 . . . 14 5 4 . 3 1 2 4 . . 4 . . 7 16 1 Classes Destroyed 25 | 2 7 . 1 . 4 1 . 1 . 1 2 1 . . . . . . . 1 . . . . . . . 1 1 . . 2 . Worker 15 | . 1 . 1 . 4 . . . . . 1 . . . . . 1 3 . . . . 1 . . . . . . . 1 1 1 Builder 22 | . 1 . . . 3 . . . . . 2 . . 1 . . 1 9 . . . . . . . . . 1 . . . 4 . Tunneler 8 | 2 . 3 . 1 . 1 . . . . . . . 1 . . . . . . . . . . . . . . . . . . . Hauler 23 | . 2 . 5 . 3 . . . . . 2 . . 1 . . . 1 . . . . 1 . . . . 4 . . 3 1 . Recycler 14 | 1 1 . 3 . 2 . . . . . 1 . . 1 . . . 2 . . . . . . . . . 1 . . . 2 . Minesweeper 2 | . . . . . . . . . . . . . . . . . . . . 1 . . . 1 . . . . . . . . . Mechanic 2 | . . . . . 1 . . . . . . . . . . . . . . . . . . . . . . . . . . 1 . Operator 15 | . 2 . . . 1 . . . . . 1 . . 1 . 9 1 . . . . . . . . . . . . . . . . Drone 3 | . . . . . . . . . . 1 . . . . . . . . . . . 1 . . . . 1 . . . . . . Watcher 9 | . 2 . 1 . . . . . . . 1 . . 1 2 . 1 . . . . . 1 . . . . . . . . . . Swarmer 80 | . 3 6 15 . 3 . . . . 5 4 . 1 1 . . . 14 5 4 . . . . 4 . 1 . 3 . 7 4 . Saboteur 1 | . . . . . . . . . . . 1 . . . . . . . . . . . . . . . . . . . . . . Grunt 96 | . 14 2 1 16 10 3 . 7 . 4 4 . 1 . . . 1 5 . . 1 3 3 2 . . 1 5 3 . 1 9 . Brawler 6 | . . . . . 2 . . . . 1 2 . . . . . . . . . . 1 . . . . . . . . . . . Duelist 9 | . . . . . 1 2 . 1 . . . . . . . . . 1 . . . . . . . . . . 4 . . . . Protector 1 | . . . . . . . . . . . . . . . . . . . . . . . . . . . . . 1 . . . . Researcher 3 | . . . . . . . . . . . . . . . . . . . . . . . . . . . . . . . . 3 . Sentry 20 | . . . 3 . 5 1 1 . . 1 3 . 1 . . 1 1 1 . . . . . . . . . . 2 . . . . Demolisher 1 | . . . . . . . . . . . . . . . . . . . . . . . . . . . . . 1 . . . . Specialist 2 | . . . . . . . . . . . 2 . . . . . . . . . . . . . . . . . . . . . . Hunter 25 | . . . . . 2 . . 1 . . 2 . . 1 . . . . . . . . 4 4 2 . 4 . 1 . . 4 . Programmer 31 | . . . . . . 2 . . . 1 1 . . . . . 2 5 1 . . . 6 . . . . . 8 . 1 3 1 Q-Series 2 | . . . . . . . . . . . . . . . . . . . . . . . . . . . . . . . . 2 . Armor Guard 2 | . . . . . . . . . . . . . . . . . . . . . . . . . . . . . 2 . . . . Cetus Guard 7 | . . . . . . . . . . . . . . . 7 . . . . . . . . . . . . . . . . . . Enhanced Grunt 4 | . . . . . . . . . 4 . . . . . . . . . . . . . . . . . . . . . . . . Investigator 1 | . . . . . . . . . . . . . . . . . . . . . . . . . . . . . . . . 1 . Striker 2 | . . . . . . . . . . . . . . . . . . . . . . . . . . . . 2 . . . . . Samaritan 3 | . . . . . . . . 3 . . . . . . . . . . . . . . . . . . . . . . . . . Surgeon 1 | . . . . . . . . . . . . . . . 1 . . . . . . . . . . . . . . . . . . Thug 1 | . . . . . . . . . . . . . . . . 1 . . . . . . . . . . . . . . . . . Martyr 2 | . . . . . . . . . . . . 2 . . . . . . . . . . . . . . . . . . . . . Best Kill Streak 25 | 3 8 3 10 3 6 3 1 5 1 6 8 . 1 3 5 4 2 14 5 4 1 4 5 5 4 . 4 7 5 . 4 25 1 Combat Bots Only 15 | . 6 3 5 3 3 3 1 5 1 6 5 . 1 1 4 1 1 9 5 4 1 4 2 4 4 . 4 7 5 . 4 15 1 Max Kills in Single Turn 6 | 1 1 1 2 1 3 2 1 2 1 2 4 1 1 1 1 1 2 4 4 3 1 1 2 1 2 . 1 3 1 . 2 6 1 Gunslinging 1 | . . . 1 . . . . . . . . . . . . . . . . . . . . . . . . . . . . . . Exploded 4 | . 1 . 2 . 2 1 . 2 . 2 3 . . 1 . . . 3 4 3 . 1 1 1 2 . . 3 . . 2 4 1 Melee . | . . . . . . . . . . . . . . . . . . . . . . . . . . . . . . . . . . Uniques/NPCs Destroyed 1 | . . . . . . . . . . . . . . . 1 . . . . . . . . . . . . . . . . . . A7 (-6/Cetus) Combat | -11 -10 -10 -9 -9 -8 -7 -7 -7 -7 -6 -6 -6 -6 -6 -6 -6 -6 -5 -5 -5 -5 -4 -4 -4 -4 -4 -3 -3 -3 -3 -2 -2 -1 -------- Run | Yrd Mat Min Mat Min Mat Fac Low Low Dat Pro Fac Was Fac Ext Cet Arc Hub Fac Upp Upp War Pro Fac Upp Upp Zhi Pro Res Arm Lab Res Tes Acc Hostile Shots Fired 2700 | . 62 26 82 37 98 70 39 41 18 96 264 3 7 60 14 . 74 121 10 38 71 12 175 57 31 . 138 55 226 . 64 507 204 Missed 896 | . 16 10 17 14 33 24 17 15 7 40 83 2 1 20 11 . 19 28 1 14 13 4 48 26 17 . 48 12 58 . 26 202 70 Hits 1804 | . 46 16 65 23 65 46 22 26 11 56 181 1 6 40 3 . 55 93 9 24 58 8 127 31 14 . 90 43 168 . 38 305 134 Melee 52 | . . . . . 1 7 . 1 . 3 9 1 . . . . . 8 . . 2 . . . . . . 6 13 . . 1 . Projectile 1752 | . 46 16 65 23 64 39 22 25 11 53 172 . 6 40 3 . 55 85 9 24 56 8 127 31 14 . 90 37 155 . 38 304 134 AOE 7 | . . . . . . . . . . . . . . . . . . . . . . . . . . . . . 1 . 1 5 . Critical Strikes 76 | . 2 . 1 . 4 1 . 2 . 4 6 . . . . . 6 5 . . 2 2 7 1 2 . 2 4 8 . 2 9 6 Actively Blocked 10 | . . . . . . . . . . . . . . . . . . . . . . . . . . . . 3 7 . . . . Part Disruptions 15 | . . . . . . . . . . . 6 . . . . . 4 1 . . . . 1 . . . . . 2 . 1 . . Damage Taken 31642 | . 536 186 696 258 1066 845 243 362 400 1409 2372 65 105 398 166 . 1200 2039 184 395 1347 126 1627 664 315 . 1363 678 3882 . 1082 5226 2407 Core 2842 | . 82 33 118 30 122 5 . 31 69 108 200 55 . 87 21 . 106 149 . 18 188 17 166 59 15 . 54 23 331 . . 385 370 Absorbed by Shields 3890 | . . . . . . . . 42 123 . 278 . 37 157 60 . 83 . . . 58 39 576 . . . 314 456 124 . . 1543 . Reduced by Siege Mode 515 | . . . . . . . . . . . . . . . . . . 78 . . . . 9 . . . 63 34 331 . . . . Regen/Repaired (Parts) 5430 | . . . . . 252 . . . . . . 20 27 49 . . . 1817 9 48 56 165 885 94 48 . 114 264 298 . 611 510 163 Core Remaining (%) 70 | 100 . 54 . 63 77 . . . . 69 . . . . . . 44 . . . . 62 . . . . 74 . . 88 . 65 76 Volleys Fired 1426 | 7 70 67 69 28 58 36 3 31 23 44 79 56 14 31 25 90 53 84 13 11 17 12 98 17 13 . 64 47 109 8 46 102 1 Largest 2 | 2 2 2 2 2 2 2 2 2 2 2 2 2 2 2 2 2 2 2 2 2 1 2 1 1 1 . 2 2 2 1 1 2 1 Hottest 240 | 40 50 50 90 90 112 133 119 119 132 125 240 80 175 175 138 138 159 180 180 180 90 139 90 49 90 . 178 226 240 120 120 240 200 Shots Fired 2093 | 14 129 93 129 56 95 61 6 37 46 63 109 107 24 50 39 150 56 133 25 14 17 13 98 18 13 . 68 85 176 8 46 114 1 Gun 730 | 14 107 80 120 56 28 . . . . . 2 70 . . . 142 . . . . . . . . . . 30 41 . . . 40 . Cannon 1209 | . 18 13 . . 57 61 6 27 46 49 97 37 24 48 31 8 56 125 23 8 17 8 91 . 3 . 38 40 169 8 38 62 1 Launcher 151 | . 4 . 9 . 10 . . 10 . 14 10 . . 2 8 . . 8 2 6 . 5 7 18 10 . . 4 4 . 8 12 . Special 3 | . . . . . . . . . . . . . . . . . . . . . . . . . . . . . 3 . . . . Kinetic 347 | 14 125 93 32 . . . . . . . . . . . . 83 . . . . . . . . . . . . . . . . . Thermal 1125 | . . . . . . 44 . 16 . 1 99 107 24 48 . 59 50 125 23 6 16 8 74 . 3 . 62 78 133 8 38 102 1 Explosive 53 | . 4 . . . . . . 10 . 14 2 . . 1 . . . . . . . . . . . . . 2 . . 8 12 . Electromagnetic 565 | . . . 97 56 95 17 6 11 46 48 8 . . 1 39 8 6 8 2 8 1 5 24 18 10 . 6 5 40 . . . . Robot Hit Streak 32 | 6 12 9 13 17 20 12 12 18 32 9 11 7 4 6 7 5 5 16 2 7 2 . 8 . . . 8 14 15 . 10 6 . Robot Miss Streak 10 | 1 3 3 4 5 2 1 . 1 2 4 3 4 4 4 2 6 6 3 1 1 3 8 10 . . . 6 2 3 . 4 5 . Penetration Max 1 | . . . . . . . . . . . . . . . . 1 . . . . . . . . . . . . . . . . . Secondary Targets 4 | . 1 . 3 . . . . . . . . . . . . . . . . . . . . . . . . . . . . . . Max Gunslinging Chain 1 | . 1 . 1 . . . . . . . . . . . . . . . . . . . . . . . . . . . . . . Shots Hit Robots 1088 | 9 75 58 80 43 72 41 6 30 29 31 59 67 10 26 25 71 12 67 3 5 4 . 37 . . 13 31 48 102 . 12 22 . Core Hits 720 | 5 47 19 47 37 55 16 1 23 11 20 44 30 6 9 24 32 15 64 6 6 2 5 20 9 5 4 13 22 33 . 24 64 2 Critical Kills 10 | . 1 . . . . . . . . . 1 . . . . . . 2 . . . . . . . . 1 2 2 . . 1 . Critical Parts Destroyed 1 | . . 1 . . . . . . . . . . . . . . . . . . . . . . . . . . . . . . . Critical Strikes 23 | . 1 1 . . 3 . . . 1 . 1 . . . . 1 . 2 . . . . 1 . . 2 3 4 2 . . 1 . Burn 5 | . . . . . . . . . . . . . . . . 1 . . . . . . . . . . 2 2 . . . . . Meltdown 9 | . . . . . . . . . . . 1 . . . . . . 2 . . . . . . . . 1 2 2 . . 1 . Destroy 2 | . 1 1 . . . . . . . . . . . . . . . . . . . . . . . . . . . . . . . Corrupt 5 | . . . . . 3 . . . 1 . . . . . . . . . . . . . 1 . . . . . . . . . . Impale 2 | . . . . . . . . . . . . . . . . . . . . . . . . . . 2 . . . . . . . Melee Attacks 30 | . . . . . . . . . 17 . . . . . . . . . . . . . . . . 13 . . . . . . . Impact . | . . . . . . . . . . . . . . . . . . . . . . . . . . . . . . . . . . Slashing 17 | . . . . . . . . . 17 . . . . . . . . . . . . . . . . . . . . . . . . Piercing 13 | . . . . . . . . . . . . . . . . . . . . . . . . . . 13 . . . . . . . Sneak Attacks 1 | . . . . . . . . . 1 . . . . . . . . . . . . . . . . . . . . . . . . Combat Hostiles . | . . . . . . . . . . . . . . . . . . . . . . . . . . . . . . . . . . Follow-up Attacks . | . . . . . . . . . . . . . . . . . . . . . . . . . . . . . . . . . . Damage Inflicted 47726 | 109 1118 609 1572 815 2343 1116 120 1435 534 1341 3447 1503 495 1255 1392 1903 831 3970 274 344 222 419 2006 788 438 694 840 2317 4231 . 1818 7221 206 Guns 7628 | 109 725 427 1168 718 429 . . . . . . 803 . . . 1757 . . . . . . . . . . 481 767 . . . 244 . Cannons 20518 | . 224 160 . . 931 943 120 563 473 717 1904 700 488 1089 215 146 544 2720 137 128 222 . 1610 . . . 359 690 4043 . 459 933 . Explosions 18444 | . 166 . 325 53 983 173 . 872 . 624 1543 . . 157 1177 . 282 1250 137 216 . 419 396 788 438 . . 798 188 . 1359 5992 108 Melee 755 | . . . . . . . . . 61 . . . . . . . . . . . . . . . . 694 . . . . . . . Ramming 381 | . 3 22 79 44 . . . . . . . . 7 9 . . 5 . . . . . . . . . . 62 . . . 52 98 Kinetic 2916 | 109 949 587 203 . . . . . . . . . . . . 1068 . . . . . . . . . . . . . . . . . Thermal 22461 | . . . 196 53 414 824 . 367 . 45 2043 1503 488 1089 383 689 461 3181 137 71 191 . 1135 87 . . 760 1433 3350 . 459 2994 108 Explosive 8717 | . 166 . . . . . . 872 . 579 1063 . . 18 . . . . . . . . . . . . . 485 . . 1359 4175 . Electromagnetic 12496 | . . . 1094 718 1929 292 120 196 473 717 341 . . 139 1009 146 365 789 137 273 31 419 871 701 438 . 80 337 881 . . . . Impact . | . . . . . . . . . . . . . . . . . . . . . . . . . . . . . . . . . . Slashing 61 | . . . . . . . . . 61 . . . . . . . . . . . . . . . . . . . . . . . . Piercing 694 | . . . . . . . . . . . . . . . . . . . . . . . . . . 694 . . . . . . . Highest Corruption 72 | . . . . . 1 5 5 . 23 72 8 15 16 12 42 42 35 14 14 14 26 22 12 12 13 13 21 1 14 24 . 15 10 Average Corruption 12 | . . . . . 1 3 3 . 18 30 5 10 15 9 28 35 22 12 14 14 25 21 6 12 12 13 15 1 5 14 . 7 6 Corruption Purged 42 | . . . . . . . 5 . . . 4 6 4 3 . 20 . . . . . . . . . . . . . . . . . Corruption Blocked . | . . . . . . . . . . . . . . . . . . . . . . . . . . . . . . . . . . Effects 711 | . . . . . 2 14 22 . 1 45 5 54 49 55 21 40 52 53 46 38 2 12 37 32 12 9 26 4 44 5 . 26 5 Message Errors 144 | . . . . . 1 . 3 . 1 7 2 12 6 9 4 7 9 7 15 9 . 6 10 6 4 3 5 . 10 1 . 5 2 Matter Fused 186 | . . . . . 1 3 3 . . 9 2 11 20 11 7 10 16 10 8 11 1 3 12 10 4 5 6 3 10 2 . 7 1 Heat Flow Errors 86 | . . . . . . 3 6 . . 5 . 8 7 10 . 4 3 5 6 6 1 . 2 7 1 . 4 . 6 . . 2 . Energy Discharges 74 | . . . . . . 5 4 . . 4 . 6 4 7 3 4 2 8 4 2 . 1 6 2 2 . 4 . 4 1 . 1 . Parts Rejected 8 | . . . . . . . . . . 2 . . 1 1 . . . 1 . 1 . . . . . . 1 . 1 . . . . Parts Fused 9 | . . . . . . . 1 . . . . . . . . 1 1 1 1 1 . 1 . . . . . . . 1 . 1 . Data Loss (minor) 80 | . . . . . . 2 3 . . 5 1 7 7 7 5 1 7 7 6 4 . 1 2 4 . . 1 1 6 . . 2 1 Data Loss (major) 35 | . . . . . . . 2 . . 2 . 4 1 3 . 1 4 1 3 3 . . 2 2 1 . 2 . 2 . . 1 1 Misfires 24 | . . . . . . 1 . . . 1 . . 2 3 . . 5 4 2 . . . 1 1 . . 1 . 3 . . . . Alerts 13 | . . . . . . . . . . 3 . 1 . 2 . . . 1 . 1 . . 1 . . 1 2 . . . . 1 . Misdirections 8 | . . . . . . . . . . . . . . . . . 1 2 . . . . . . . . . . . . . 5 . Weapon Failures 44 | . . . . . . . . . . 7 . 5 1 2 2 12 4 6 1 . . . 1 . . . . . 2 . . 1 . Overload Shots 3 | . . . . . . . . . . . 3 . . . . . . . . . . . . . . . . . . . . . . Overflow Damage 1910 | . . . . . 43 34 . 128 . 42 304 3 4 83 . . 29 232 7 30 . . 73 2 16 47 3 31 202 . 106 491 . Projectiles 1014 | . . . . . . 22 . 113 . . 114 3 4 83 . . 29 174 7 15 . . 73 . . . 3 19 202 . . 153 . Explosions 837 | . . . . . 43 12 . 15 . 42 190 . . . . . . 58 . 15 . . . 2 16 . . . . . 106 338 . Melee 59 | . . . . . . . . . . . . . . . . . . . . . . . . . . 47 . 12 . . . . . Knockbacks 2 | . 2 . . . . . . . . . . . . . . . . . . . . . . . . . . . . . . . . Impact . | . . . . . . . . . . . . . . . . . . . . . . . . . . . . . . . . . . Kinetic 2 | . 2 . . . . . . . . . . . . . . . . . . . . . . . . . . . . . . . . Secondary . | . . . . . . . . . . . . . . . . . . . . . . . . . . . . . . . . . . Self-Inflicted Damage 1903 | . . . 69 . 66 90 . 59 . 223 317 . 3 . 94 . 99 150 17 34 . 9 34 139 94 . . . 57 . 89 83 177 Shots 54 | . . . 3 . 2 2 . 2 . 7 8 . . . 2 . 1 4 1 1 . 1 1 5 5 . . . 4 . 3 1 1 Rammed 30 | . . . 11 9 . . . . . . . . 1 . . . 1 . . . . . . . . . . 2 . . . 2 4 Targets Rammed 41 | . 2 6 11 9 . . . . . . . . 1 2 . . 1 . . . . . . . . . . 3 . . . 2 4 Kicked 10 | . 2 6 . . . . . . . . . . . 2 . . . . . . . . . . . . . . . . . . . Crushed 1 | . . . . . . . . . . . . . . . . . . . . . . . . . . . . 1 . . . . . Highest Temperature 500 | . 18 41 18 . 36 300 204 18 228 288 264 299 229 374 151 212 185 500 202 216 104 . 143 174 19 . 127 . 384 36 105 487 134 Average Temperature 83 | . 9 7 10 . 12 88 83 6 73 111 48 85 82 109 58 46 45 115 74 61 18 . 50 73 19 . 59 . 127 15 42 118 82 Received Heat Transfer 3898 | . 303 69 105 147 468 144 12 107 . 249 274 . 12 22 . . 32 468 . . 222 43 94 12 . . . 52 273 . 18 772 . Effects 12 | . . . . . . . . . . 1 . . . 3 . . . 2 1 . . . . . . . . . . . . 5 . Shutdowns 4 | . . . . . . . . . . . . . . 1 . . . 1 . . . . . . . . . . . . . 2 . Energy Bleed 4 | . . . . . . . . . . 1 . . . 1 . . . . . . . . . . . . . . . . . 2 . Interference 1 | . . . . . . . . . . . . . . . . . . . 1 . . . . . . . . . . . . . . Matter Decay 3 | . . . . . . . . . . . . . . 1 . . . 1 . . . . . . . . . . . . . 1 . Siege Activations 14 | . . . . . . . . . . . . . . . . . . 3 . . . . 1 . . . 2 2 6 . . . . Total Turns 264 | . . . . . . . . . . . . . . . . . . 58 . . . . 17 . . . 61 20 108 . . . . Longest Duration 53 | . . . . . . . . . . . . . . . . . . 39 . . . . 17 . . . 53 17 30 . . . . Martial Activations . | . . . . . . . . . . . . . . . . . . . . . . . . . . . . . . . . . . Shielding Activations . | . . . . . . . . . . . . . . . . . . . . . . . . . . . . . . . . . . Robots Disrupted 1 | . . . . . . . . . . . . . . . . . . 1 . . . . . . . . . . . . . . . Combat Hostiles 1 | . . . . . . . . . . . . . . . . . . 1 . . . . . . . . . . . . . . . Robots Corrupted 36 | . . . 1 . 1 1 1 . 4 1 1 . . . 7 . . . . . . 2 5 4 2 . 1 . 5 . . . . Combat Hostiles 35 | . . . 1 . 1 1 1 . 4 1 1 . . . 6 . . . . . . 2 5 4 2 . 1 . 5 . . . . Parts Fried 92 | . . . 10 1 9 2 . 1 11 1 4 . . . 13 . 2 3 1 1 . 5 12 3 3 . . 1 9 . . . . Impact Corruptions 1 | . . . . . . . . . . . . . . . . . . . . . . . . . . . . 1 . . . . . Robots Melted 10 | . . . . . . . . . . . 1 . . . . . . 2 . . . . . . . . 2 2 2 . . 1 . Combat Hostiles 7 | . . . . . . . . . . . 1 . . . . . . 1 . . . . . . . . 2 1 2 . . . . Parts Melted 56 | . . . . . 1 6 . 1 . . 6 . . 1 . 1 . 9 . . 1 . . . . . 8 6 10 . . 5 1 Heat Transferred 23306 | . . . 300 100 500 1162 . 592 . 50 2855 3394 222 666 327 1295 . 1882 37 74 194 . . . . . 1596 2316 2733 . 379 2552 80 Parts Sabotaged 3 | . . . . . . . . . . . 3 . . . . . . . . . . . . . . . . . . . . . . Parts Stolen . | . . . . . . . . . . . . . . . . . . . . . . . . . . . . . . . . . . Parts Stripped . | . . . . . . . . . . . . . . . . . . . . . . . . . . . . . . . . . . Power Chain Reactions 28 | . . . 5 2 6 2 . . . 1 2 . . . 1 . 1 5 . 1 . . . 1 . . . . 1 . . . . Alert | -11 -10 -10 -9 -9 -8 -7 -7 -7 -7 -6 -6 -6 -6 -6 -6 -6 -6 -5 -5 -5 -5 -4 -4 -4 -4 -4 -3 -3 -3 -3 -2 -2 -1 ------- Run | Yrd Mat Min Mat Min Mat Fac Low Low Dat Pro Fac Was Fac Ext Cet Arc Hub Fac Upp Upp War Pro Fac Upp Upp Zhi Pro Res Arm Lab Res Tes Acc Maximum Alert Level 3 | . 1 . 1 . 2 1 . . . . 3 1 1 2 2 1 3 3 . . . . 2 . . . . 3 2 . 1 3 2 Low Security (%) 53 | 100 96 100 83 100 44 82 . . . . . 89 81 78 . 25 22 . . . . . . . . . . . 9 . 76 6 . Level 1 24 | . 3 . 16 . 13 17 . . . . 50 10 18 12 40 74 15 54 . . . . 39 . . . . . 79 . 23 45 . Level 2 15 | . . . . . 41 . . . . . 39 . . 9 59 . 54 19 . . . . 60 . . . . 52 10 . . 3 100 Level 3 6 | . . . . . . . . . . . 10 . . . . . 7 25 . . . . . . . . . 47 . . . 43 . Level 4 . | . . . . . . . . . . . . . . . . . . . . . . . . . . . . . . . . . . Level 5 . | . . . . . . . . . . . . . . . . . . . . . . . . . . . . . . . . . . High Security . | . . . . . . . . . . . . . . . . . . . . . . . . . . . . . . . . . . Max Security . | . . . . . . . . . . . . . . . . . . . . . . . . . . . . . . . . . . Peak Influence 1095 | 10 207 85 254 176 654 289 . . . . 785 256 322 582 488 306 797 866 . . . . 498 . . . . 927 415 . 337 1095 656 Initial 927 | . 3 19 27 97 65 289 . . . . 460 256 . 133 325 159 55 352 . . . . 450 . . . . 927 413 . . 186 656 Average 239 | 1 105 10 92 59 296 129 . . . . 411 54 70 116 407 228 394 506 . . . . 402 . . . . 721 315 . 125 580 583 Influence Increases 15941 | 15 572 265 639 421 977 335 35 210 . 275 1387 43 538 1024 324 289 1240 984 155 110 50 95 988 160 140 10 175 1207 921 . 710 1597 50 Destroy 0b10 Robot/C 6620 | . 340 160 380 340 460 160 20 180 . 240 380 . 200 380 160 80 320 520 120 80 20 80 260 120 120 . 120 140 500 . 180 540 20 Destroy 0b10 Robot/NC 625 | 15 45 15 50 5 70 5 . . . 5 40 . 10 50 10 45 35 75 . 5 . 5 15 5 . 10 5 30 5 . 20 45 5 Destroy Leader 1222 | . 78 30 72 20 136 40 . 30 . 30 86 . 54 46 . . 126 82 20 10 . 10 64 20 20 . 20 28 92 . 36 62 10 Allied During Kill 1309 | . . . . 1 . . . . . . . . 262 437 131 97 373 . . . . . . . . . . . 8 . . . . Successful Hack 349 | . 17 . 27 . 35 12 . . . . 12 . . 22 . . 12 118 . . . . 18 . . . . . 44 . 18 14 . Select Force Hacks 30 | . 30 . . . . . . . . . . . . . . . . . . . . . . . . . . . . . . . . Disable Machine 1320 | . . 30 15 . 75 75 . . . . 240 . . 30 . 60 210 45 . . . . 90 . . . . 15 150 . 30 240 15 Destroy Structure 1466 | . 17 . 20 10 21 43 . . . . 149 43 12 29 23 7 164 144 . . . . 76 . . . . 94 92 . 216 306 . Advance Influence 1800 | . . . . . . . . . . . 450 . . . . . . . . . . . 450 . . . . 900 . . . . . Partial Spotted 45 | . . . . . . . . . . . . . . . . . . . . . . . . . . . . . . . 45 . . Lose Combat Pursuer 1155 | . 45 30 75 45 180 . 15 . . . 30 . . 30 . . . . 15 15 30 . 15 15 . . 30 . 30 . 165 390 . Influence Decreases 15455 | 10 526 244 461 503 509 935 71 210 . 258 671 776 264 716 507 530 677 845 741 351 83 95 582 535 171 10 134 460 1327 382 379 833 659 Entered New Map 4208 | . 2 32 45 153 103 347 14 . . . 7 477 . 141 257 240 103 369 319 53 33 . . 151 7 . . 14 375 382 . 145 439 Time Decay 9657 | 10 514 202 416 350 396 498 57 210 . 218 514 269 224 415 190 270 404 446 422 298 50 95 562 374 144 10 124 446 612 . 369 458 90 Lost Part 840 | . 10 10 . . 10 30 . . . 40 150 10 . . . . 50 30 . . . . 20 10 20 . 10 . 130 . 10 170 130 Lost Ally 600 | . . . . . . 60 . . . . . 20 40 160 60 20 120 . . . . . . . . . . . 60 . . 60 . Purge Threat 150 | . . . . . . . . . . . . . . . . . . . . . . . . . . . . . 150 . . . . Squads Dispatched 69 | . 3 1 1 . 6 3 . . . . 6 . 2 2 . . 5 6 . . . . 8 . . . . 7 8 . . 10 1 Investigation 11 | . 1 1 1 . 1 1 . . . . 1 . 1 1 . . 1 . . . . . 1 . . . . . . . . 1 . Extermination 22 | . . . . . . 2 . . . . 2 . 1 . . . 2 2 . . . . 5 . . . . . 4 . . 3 1 Reinforcement 29 | . 2 . . . 3 . . . . . 1 . . 1 . . 2 3 . . . . 1 . . . . 7 4 . . 5 . Assault 5 | . . . . . . . . . . . 2 . . . . . . 1 . . . . 1 . . . . . . . . 1 . Garrison 2 | . . . . . 2 . . . . . . . . . . . . . . . . . . . . . . . . . . . . Intercept . | . . . . . . . . . . . . . . . . . . . . . . . . . . . . . . . . . . Searches Triggered . | . . . . . . . . . . . . . . . . . . . . . . . . . . . . . . . . . . Construction Impeded 8 | . . . . . 2 . . . . . . . . 1 . . . 2 . . . . 1 . . . . 1 . . . 1 . Haulers Reinforced 3 | . . . . . . . . . . . . . . . . . . 1 . . . . . . . . . 1 . . . 1 . Active Scanning Responses . | . . . . . . . . . . . . . . . . . . . . . . . . . . . . . . . . . . Cargo Convoy Interrupts 1 | . . . . . . . . . . . 1 . . . . . . . . . . . . . . . . . . . . . . Stealth | -11 -10 -10 -9 -9 -8 -7 -7 -7 -7 -6 -6 -6 -6 -6 -6 -6 -6 -5 -5 -5 -5 -4 -4 -4 -4 -4 -3 -3 -3 -3 -2 -2 -1 --------- Run | Yrd Mat Min Mat Min Mat Fac Low Low Dat Pro Fac Was Fac Ext Cet Arc Hub Fac Upp Upp War Pro Fac Upp Upp Zhi Pro Res Arm Lab Res Tes Acc Distress Signals 45 | . 1 . 1 1 3 . . . . . 1 . 1 3 2 . 2 . . . 1 . . . . . 1 8 1 . 8 8 3 Communications Jammed 40 | . . . . . . . . . . . . . . . . . . . . . . . . . . . 16 . 5 . . 19 . Distress Signals 14 | . . . . . . . . . . . . . . . . . . . . . . . . . . . . . 5 . . 9 . Times Spotted 646 | . 36 10 26 19 39 9 2 10 4 15 40 7 11 18 8 47 21 24 6 7 49 7 19 7 6 . 18 21 36 . 36 76 12 Peak Tracking Total 15 | . 6 3 6 3 4 3 1 3 1 5 10 5 3 4 5 1 4 5 4 5 11 4 3 2 4 . 6 7 5 . 11 15 12 Tactical Retreats 49 | . 3 2 3 3 5 . 1 1 . . 2 1 . 1 . . . . 1 1 1 . 1 1 . . 2 . 2 . 7 11 . Traps | -11 -10 -10 -9 -9 -8 -7 -7 -7 -7 -6 -6 -6 -6 -6 -6 -6 -6 -5 -5 -5 -5 -4 -4 -4 -4 -4 -3 -3 -3 -3 -2 -2 -1 ------- Run | Yrd Mat Min Mat Min Mat Fac Low Low Dat Pro Fac Was Fac Ext Cet Arc Hub Fac Upp Upp War Pro Fac Upp Upp Zhi Pro Res Arm Lab Res Tes Acc Traps Triggered 21 | . 1 . 3 . . 1 . . . . 5 . . 2 . . . 1 . . . . . . . . . 4 2 . . 2 . Indirectly 7 | . . . 3 . . . . . . . 2 . . . . . . . . . . . . . . . . . 2 . . . . Trap Hack Attempts . | . . . . . . . . . . . . . . . . . . . . . . . . . . . . . . . . . . Triggered . | . . . . . . . . . . . . . . . . . . . . . . . . . . . . . . . . . . Disarmed . | . . . . . . . . . . . . . . . . . . . . . . . . . . . . . . . . . . Reprogrammed . | . . . . . . . . . . . . . . . . . . . . . . . . . . . . . . . . . . Reused . | . . . . . . . . . . . . . . . . . . . . . . . . . . . . . . . . . . Traps Extracted . | . . . . . . . . . . . . . . . . . . . . . . . . . . . . . . . . . . Installed . | . . . . . . . . . . . . . . . . . . . . . . . . . . . . . . . . . . Triggered . | . . . . . . . . . . . . . . . . . . . . . . . . . . . . . . . . . . Machines | -11 -10 -10 -9 -9 -8 -7 -7 -7 -7 -6 -6 -6 -6 -6 -6 -6 -6 -5 -5 -5 -5 -4 -4 -4 -4 -4 -3 -3 -3 -3 -2 -2 -1 ---------- Run | Yrd Mat Min Mat Min Mat Fac Low Low Dat Pro Fac Was Fac Ext Cet Arc Hub Fac Upp Upp War Pro Fac Upp Upp Zhi Pro Res Arm Lab Res Tes Acc Machines Disabled 95 | . . 2 1 . 5 5 . . 1 . 16 . . 2 . 4 14 3 . . . . 6 1 . . . 1 10 3 2 18 1 Max in Single Turn 12 | . . 1 1 . 2 5 . . 1 . 5 . . 1 . 1 12 1 . . . . 3 1 . . . 1 1 1 1 4 1 Garrison Access 6 | . . . . . . . . . . . 2 . . . . . 1 . . . . . . . . . . . . . 3 . . Network Hub 2 | . . . . . . . . . . . . . . . . . 2 . . . . . . . . . . . . . . . . Machines Repaired . | . . . . . . . . . . . . . . . . . . . . . . . . . . . . . . . . . . Machines Dismantled . | . . . . . . . . . . . . . . . . . . . . . . . . . . . . . . . . . . Machines Sabotaged . | . . . . . . . . . . . . . . . . . . . . . . . . . . . . . . . . . . Overloaded Fab Kills . | . . . . . . . . . . . . . . . . . . . . . . . . . . . . . . . . . . Hacking | -11 -10 -10 -9 -9 -8 -7 -7 -7 -7 -6 -6 -6 -6 -6 -6 -6 -6 -5 -5 -5 -5 -4 -4 -4 -4 -4 -3 -3 -3 -3 -2 -2 -1 --------- Run | Yrd Mat Min Mat Min Mat Fac Low Low Dat Pro Fac Was Fac Ext Cet Arc Hub Fac Upp Upp War Pro Fac Upp Upp Zhi Pro Res Arm Lab Res Tes Acc Machines Accessed 92 | . 7 1 6 1 9 5 . . 4 . 7 . 2 8 . . 9 4 1 1 2 . 6 1 . 4 . . 5 . 4 5 . Terminals 57 | . 5 . 6 1 8 3 . . . . 4 . 2 8 . . 8 1 . . . . 2 . . . . . 4 . 1 4 . Fabricators 7 | . . . . . . 1 . . . . 1 . . . . . . . . . . . 3 . . . . . 1 . . 1 . Repair Stations 6 | . 1 . . . 1 . . . . . . . . . . . . 3 . . . . 1 . . . . . . . . . . Recycling Units 1 | . 1 . . . . . . . . . . . . . . . . . . . . . . . . . . . . . . . . Scanalyzers . | . . . . . . . . . . . . . . . . . . . . . . . . . . . . . . . . . . Garrison Access 7 | . . . . . . 1 . . . . 2 . . . . . 1 . . . . . . . . . . . . . 3 . . Total Hacks 288 | . 15 1 21 2 32 11 . . 28 . 15 . 3 14 . . 20 19 1 6 3 . 22 1 . 17 . . 27 . 13 17 . Successful 161 | . 9 1 12 1 16 6 . . 28 . 5 . 2 7 . . 4 10 1 6 3 . 9 1 . 17 . . 13 . 4 6 . Failed 127 | . 6 . 9 1 16 5 . . . . 10 . 1 7 . . 16 9 . . . . 13 . . . . . 14 . 9 11 . Catastrophic 35 | . . . 1 . 1 1 . . . . 2 . 1 2 . . 6 5 . . . . 7 . . . . . 4 . 2 3 . Database Lockouts . | . . . . . . . . . . . . . . . . . . . . . . . . . . . . . . . . . . Manual 112 | . 12 . 17 2 24 3 . . . . 9 . 2 2 1 . 14 1 . . 1 . 3 . . . . . 18 . 1 2 . Terminals 163 | . 11 . 21 2 26 5 . . . . 9 . 3 14 . . 19 4 . . . . 9 . . . . . 21 . 6 13 . Fabricators 25 | . . . . . . 5 . . . . 3 . . . . . . . . . . . 7 . . . . . 6 . . 4 . Repair Stations 30 | . 3 . . . 6 . . . . . . . . . . . . 15 . . . . 6 . . . . . . . . . . Recycling Units 1 | . 1 . . . . . . . . . . . . . . . . . . . . . . . . . . . . . . . . Scanalyzers . | . . . . . . . . . . . . . . . . . . . . . . . . . . . . . . . . . . Garrison Access 12 | . . . . . . 1 . . . . 3 . . . . . 1 . . . . . . . . . . . . . 7 . . Terminal Hacks 96 | . 1 1 5 1 4 1 . . 28 . 1 . 1 6 . . 2 3 1 6 3 . 2 1 . 17 . . 7 . 1 4 . Record 25 | . . . . . . . . . 11 . . . . . . . . . . 6 2 . . . . 5 . . . . . 1 . Part Schematic 18 | . . . . . . . . . 11 . . . . . . . . . . . . . 2 . . 4 . . . . 1 . . Robot Schematic 3 | . . . . . . . . . 3 . . . . . . . . . . . . . . . . . . . . . . . . Robot Analysis 5 | . . . . 1 . . . . . . . . . . . . . . . . . . . . . 4 . . . . . . . Prototype ID Bank 12 | . 1 . 2 . 1 . . . 3 . . . . . . . . . . . . . . . . 4 . . 1 . . . . Open Door 13 | . . 1 . . . . . . . . . . 1 6 . . . . 1 . 1 . . 1 . . . . 1 . . 1 . Branch Access Points 4 | . . . 1 . 1 1 . . . . . . . . . . . 1 . . . . . . . . . . . . . . . Terminal Index 2 | . . . 1 . 1 . . . . . . . . . . . . . . . . . . . . . . . . . . . . Fabricator Index 1 | . . . . . . . . . . . . . . . . . . 1 . . . . . . . . . . . . . . . Alert Level 2 | . . . . . . . . . . . 1 . . . . . . 1 . . . . . . . . . . . . . . . Unreport Threat 1 | . . . . . . . . . . . . . . . . . . . . . . . . . . . . . 1 . . . . Locate Traps 1 | . . . . . . . . . . . . . . . . . . . . . . . . . . . . . 1 . . . . Registered Components 1 | . . . . . . . . . . . . . . . . . . . . . . . . . . . . . 1 . . . . Zone Layout 7 | . . . 1 . 1 . . . . . . . . . . . 2 . . . . . . . . . . . 2 . . 1 . Protovariant Controls 1 | . . . . . . . . . . . . . . . . . . . . . . . . . . . . . . . . 1 . Fabricator Hacks 11 | . . . . . . 2 . . . . 1 . . . . . . . . . . . 3 . . . . . 4 . . 1 . Network Status 3 | . . . . . . 1 . . . . . . . . . . . . . . . . 1 . . . . . . . . 1 . Load Schematic 4 | . . . . . . . . . . . 1 . . . . . . . . . . . 1 . . . . . 2 . . . . Build 4 | . . . . . . 1 . . . . . . . . . . . . . . . . 1 . . . . . 2 . . . . Repair Station Hacks 16 | . 2 . . . 4 . . . . . . . . . . . . 7 . . . . 3 . . . . . . . . . . Scan Component 10 | . 2 . . . 2 . . . . . . . . . . . . 4 . . . . 2 . . . . . . . . . . Repair 6 | . . . . . 2 . . . . . . . . . . . . 3 . . . . 1 . . . . . . . . . . Recycling Unit Hacks . | . . . . . . . . . . . . . . . . . . . . . . . . . . . . . . . . . . Scanalyzer . | . . . . . . . . . . . . . . . . . . . . . . . . . . . . . . . . . . Garrison Access Hacks 6 | . . . . . . . . . . . 2 . . . . . 1 . . . . . . . . . . . . . 3 . . Seal Access 6 | . . . . . . . . . . . 2 . . . . . 1 . . . . . . . . . . . . . 3 . . Unauthorized Hacks 32 | . 6 . 7 . 8 3 . . . . 1 . 1 1 . . 1 . . . . . 1 . . . . . 2 . . 1 . Terminals 27 | . 5 . 7 . 8 1 . . . . 1 . 1 1 . . 1 . . . . . . . . . . . 2 . . . . Track 1 | . . . . . . . . . . . . . . . . . . . . . . . . . . . . . 1 . . . . Botnet 4 | . . . 1 . . . . . . . 1 . 1 1 . . . . . . . . . . . . . . . . . . . Operators 4 | . . . 1 . 1 1 . . . . . . . . . . . . . . . . . . . . . . 1 . . . . Skim 17 | . 5 . 5 . 7 . . . . . . . . . . . . . . . . . . . . . . . . . . . . Sabotage 1 | . . . . . . . . . . . . . . . . . 1 . . . . . . . . . . . . . . . . Fabricators 4 | . . . . . . 2 . . . . . . . . . . . . . . . . 1 . . . . . . . . 1 . Liberate 2 | . . . . . . 1 . . . . . . . . . . . . . . . . . . . . . . . . . 1 . Haulers 1 | . . . . . . 1 . . . . . . . . . . . . . . . . . . . . . . . . . . . Recompile 1 | . . . . . . . . . . . . . . . . . . . . . . . 1 . . . . . . . . . . Repair Stations . | . . . . . . . . . . . . . . . . . . . . . . . . . . . . . . . . . . Recycling Units 1 | . 1 . . . . . . . . . . . . . . . . . . . . . . . . . . . . . . . . Tunnel 1 | . 1 . . . . . . . . . . . . . . . . . . . . . . . . . . . . . . . . Scanalyzers . | . . . . . . . . . . . . . . . . . . . . . . . . . . . . . . . . . . Garrison Access . | . . . . . . . . . . . . . . . . . . . . . . . . . . . . . . . . . . Data Cores Recovered 1 | . . . . . . . . . . . . . . . . . 1 . . . . . . . . . . . . . . . . Used . | . . . . . . . . . . . . . . . . . . . . . . . . . . . . . . . . . . Hacking Detections 61 | . 5 . 6 1 8 5 . . . . 6 . 1 4 . . 7 3 . . . . 6 . . . . . 4 . 3 2 . Full Trace Events 2 | . . . . . . 1 . . . . 1 . . . . . . . . . . . . . . . . . . . . . . Feedback Events . | . . . . . . . . . . . . . . . . . . . . . . . . . . . . . . . . . . Feedback Blocked . | . . . . . . . . . . . . . . . . . . . . . . . . . . . . . . . . . . Robot Schematics Acquired 3 | . . . . . . . . . 3 . . . . . . . . . . . . . . . . . . . . . . . . Robots Built 3 | . . . . . . 3 . . . . . . . . . . . . . . . . . . . . . . . . . . . Authchips . | . . . . . . . . . . . . . . . . . . . . . . . . . . . . . . . . . . Time 134 | . . . . . . 134 . . . . . . . . . . . . . . . . . . . . . . . . . . . Total Robot Build Rating 12 | . . . . . . 12 . . . . . . . . . . . . . . . . . . . . . . . . . . . Part Schematics Acquired 23 | . . . . . . . . . 11 . . . . . . . . . . . . . 2 . . 4 . . . . 1 5 . Parts Built 2 | . . . . . . . . . . . . . . . . . . . . . . . . . . . . . 2 . . . . Authchips 2 | . . . . . . . . . . . . . . . . . . . . . . . . . . . . . 2 . . . . Time 162 | . . . . . . . . . . . . . . . . . . . . . . . 64 . . . . . 98 . . . . Total Part Build Rating 14 | . . . . . . . . . . . . . . . . . . . . . . . . . . . . . 14 . . . . Parts Repaired 6 | . . . . . 2 . . . . . . . . . . . . 3 . . . . 1 . . . . . . . . . . Time 348 | . . . . . 64 . . . . . . . . . . . . 176 . . . . 108 . . . . . . . . . . Parts Recycled . | . . . . . . . . . . . . . . . . . . . . . . . . . . . . . . . . . . Recycled Matter . | . . . . . . . . . . . . . . . . . . . . . . . . . . . . . . . . . . Retrieved Matter . | . . . . . . . . . . . . . . . . . . . . . . . . . . . . . . . . . . Retrieved Components . | . . . . . . . . . . . . . . . . . . . . . . . . . . . . . . . . . . Parts Scanalyzed . | . . . . . . . . . . . . . . . . . . . . . . . . . . . . . . . . . . Part Schematics Acquired . | . . . . . . . . . . . . . . . . . . . . . . . . . . . . . . . . . . Parts Damaged . | . . . . . . . . . . . . . . . . . . . . . . . . . . . . . . . . . . Bothacking | -11 -10 -10 -9 -9 -8 -7 -7 -7 -7 -6 -6 -6 -6 -6 -6 -6 -6 -5 -5 -5 -5 -4 -4 -4 -4 -4 -3 -3 -3 -3 -2 -2 -1 ------------ Run | Yrd Mat Min Mat Min Mat Fac Low Low Dat Pro Fac Was Fac Ext Cet Arc Hub Fac Upp Upp War Pro Fac Upp Upp Zhi Pro Res Arm Lab Res Tes Acc Used RIF Installer . | . . . . . . . . . . . . . . . . . . . . . . . . . . . . . . . . . . Robots Hacked . | . . . . . . . . . . . . . . . . . . . . . . . . . . . . . . . . . . Non-combat . | . . . . . . . . . . . . . . . . . . . . . . . . . . . . . . . . . . Combat . | . . . . . . . . . . . . . . . . . . . . . . . . . . . . . . . . . . Robot Hacks Applied . | . . . . . . . . . . . . . . . . . . . . . . . . . . . . . . . . . . Relay Couplers Released . | . . . . . . . . . . . . . . . . . . . . . . . . . . . . . . . . . . Fabnet Peak Effective % . | . . . . . . . . . . . . . . . . . . . . . . . . . . . . . . . . . . Robots Rewired 3 | . . . . . . . . . . . . . . . . . . . . . . . . . . . . . 3 . . . . Allies Hacked 1 | . . . . . . . . . . . . . . . . . 1 . . . . . . . . . . . . . . . . Hacks Repelled . | . . . . . . . . . . . . . . . . . . . . . . . . . . . . . . . . . . Allies | -11 -10 -10 -9 -9 -8 -7 -7 -7 -7 -6 -6 -6 -6 -6 -6 -6 -6 -5 -5 -5 -5 -4 -4 -4 -4 -4 -3 -3 -3 -3 -2 -2 -1 -------- Run | Yrd Mat Min Mat Min Mat Fac Low Low Dat Pro Fac Was Fac Ext Cet Arc Hub Fac Upp Upp War Pro Fac Upp Upp Zhi Pro Res Arm Lab Res Tes Acc Total Allies 43 | . . . . 1 . 3 . . . . . 19 . 9 5 . . . . . . . . . . . . . 3 . . 3 . Largest Group 19 | . . . . 1 . 3 . . . . . 19 13 18 11 9 7 . . . . . . . . . . . 2 . . 3 . Highest-Rated Group 791 | . . . . 31 . 60 . . . . . 702 498 744 791 629 552 . . . . . . . . . . . 112 . . 174 . Highest-Rated Ally 159 | . . . . 31 . 20 . . . . . 50 46 159 159 96 96 . . . . . . . . . . . 56 . . 58 . Total Orders 5 | . . . . . . . . . . . . . . . 2 2 1 . . . . . . . . . . . . . . . . STAY 3 | . . . . . . . . . . . . . . . 1 1 1 . . . . . . . . . . . . . . . . FOLLOW 2 | . . . . . . . . . . . . . . . 1 1 . . . . . . . . . . . . . . . . . Ally Attacks 474 | . . . . 7 . . . . . . . 86 84 153 25 20 71 . . . . . . . . . . . 12 . . 16 . Total Damage 11998 | . . . . 106 . . . . . . . 2914 1517 3030 720 485 2349 . . . . . . . . . . . 503 . . 374 . Kills 63 | . . . . 1 . . . . . . . 9 10 22 1 3 15 . . . . . . . . . . . 1 . . 1 . Allies Corrupted 4 | . . . . . . . . . . . . . . . 1 . 2 . . . . . . . . . . . 1 . . . . Allies Melted 3 | . . . . . . . . . . . . . . . . . 1 . . . 1 . . . . . . . . . . 1 . Intel | -11 -10 -10 -9 -9 -8 -7 -7 -7 -7 -6 -6 -6 -6 -6 -6 -6 -6 -5 -5 -5 -5 -4 -4 -4 -4 -4 -3 -3 -3 -3 -2 -2 -1 ------- Run | Yrd Mat Min Mat Min Mat Fac Low Low Dat Pro Fac Was Fac Ext Cet Arc Hub Fac Upp Upp War Pro Fac Upp Upp Zhi Pro Res Arm Lab Res Tes Acc Active Infowar (turns) 22416 | . . 21 12 . 879 843 2074 793 404 357 596 . 416 903 . 61 974 1064 1027 945 1128 611 1672 864 333 298 550 1116 2017 132 985 1155 186 Optics 10545 | . . . . . . . . . . . . . . . . . . . . . 626 611 1672 864 333 298 550 1116 2017 132 985 1155 186 Sensors 7472 | . . . . . . . . . . . 508 . . . . . . . . . . . 1295 718 228 285 426 1045 1401 . 808 758 . IFF 6142 | . . . . . . . . . . . . . 416 903 . 61 974 1047 1027 945 769 . . . . . . . . . . . . Terrain 4988 | . . 21 12 . 879 444 2074 6 . . . . . . . . . . . . . . . . . . . . 1495 53 4 . . Structural 2243 | . . . . . . . . . . . . . . . . . . 17 820 927 479 . . . . . . . . . . . . Decoding 1 | . . . . . . . . . . . . . . . . . . . . . . . . 1 . . . . . . . . . T.N.C. 1 | . . . . . . . . . . . . . . . . . . . . . . . . . . . . . . . 1 . . Cloaking 856 | . . . . . . . . . . . . . . . . . . . . . 5 . 50 . . . 7 . 484 11 15 284 . Jamming 8498 | . . . . . . 399 2074 793 404 357 . . . . . . . . . . . . 128 864 130 . 364 884 1790 . 3 308 . ECM 174 | . . . . . . . . 31 . . 88 . . . . . . . 23 . . 1 . . . . 31 . . . . . . Robot Analysis Total 5 | . . . . 1 . . . . . . . . . . . . . . . . . . . . . 4 . . . . . . . Derelict Logs Recovered 8 | . . 1 . 1 . . 2 . . 2 . . . . . . . . . 1 . . . 1 . . . . . . . . . Drone Launches . | . . . . . . . . . . . . . . . . . . . . . . . . . . . . . . . . . . Drone Recoveries . | . . . . . . . . . . . . . . . . . . . . . . . . . . . . . . . . . . Exploration | -11 -10 -10 -9 -9 -8 -7 -7 -7 -7 -6 -6 -6 -6 -6 -6 -6 -6 -5 -5 -5 -5 -4 -4 -4 -4 -4 -3 -3 -3 -3 -2 -2 -1 ------------- Run | Yrd Mat Min Mat Min Mat Fac Low Low Dat Pro Fac Was Fac Ext Cet Arc Hub Fac Upp Upp War Pro Fac Upp Upp Zhi Pro Res Arm Lab Res Tes Acc Turns Passed 36447 | 96 1674 1936 2098 2160 960 1333 2074 793 1340 703 1413 1328 1061 1385 396 585 978 1115 1027 945 1128 611 1672 864 333 298 550 1116 2017 132 985 1155 186 Spaces Moved 18165 | 65 589 922 649 694 343 595 695 424 534 471 830 755 441 572 176 210 502 386 588 468 583 358 610 510 179 158 245 531 778 139 1707 1155 303 Core 197 | 23 . . . . . . . . . . . 113 . . . . . . . . . . . . . . . . 26 . . . 35 Treads 10091 | . . . 603 694 343 595 695 424 526 . . . . 114 176 210 502 386 588 468 583 358 610 510 179 158 245 531 593 . . . . Legs 3137 | 42 589 922 46 . . . . . 8 471 830 50 1 178 . . . . . . . . . . . . . . . . . . . Wheels 900 | . . . . . . . . . . . . 180 440 280 . . . . . . . . . . . . . . . . . . . Hover 3840 | . . . . . . . . . . . . 412 . . . . . . . . . . . . . . . . 159 139 1707 1155 268 Flight . | . . . . . . . . . . . . . . . . . . . . . . . . . . . . . . . . . . Fastest Speed 38 | 50 120 190 160 240 160 160 160 156 120 120 120 50 170 160 160 160 160 160 160 160 160 160 160 160 160 160 160 160 45 45 39 39 38 Average Speed 145 | 95 173 190 182 240 160 198 160 163 196 120 122 136 220 199 160 160 161 160 160 160 160 160 160 160 160 160 160 160 133 55 39 52 44 Slowest Speed 260 | 120 190 190 240 240 160 240 160 240 236 120 196 260 230 230 160 160 240 160 160 160 160 160 160 160 160 160 160 160 240 145 139 148 137 Overloaded Moves 9 | . . . . . . . . . . . . . . . . . . . . . . . . . . . . . . . . . 9 Propulsion Burnouts . | . . . . . . . . . . . . . . . . . . . . . . . . . . . . . . . . . . Robots Hopped . | . . . . . . . . . . . . . . . . . . . . . . . . . . . . . . . . . . Potential Cave-ins 18 | . . . . . . . . . . . . . . . . . . . . . . . 2 . . . 1 . 3 . . 12 . Cave-ins Triggered 1 | . . . . . . . . . . 1 . . . . . . . . . . . . . . . . . . . . . . . Teleports 2 | . . . . . . . . . . . . . . . . . . . . . . . . . . . . . 1 . . 1 . Exploration Rate (%) 56 | 4 96 97 55 76 31 14 81 52 81 70 24 96 15 64 56 76 53 15 66 75 71 59 23 74 60 62 52 31 55 94 46 92 13 Regions Visited 33 Branch Regions 21 Pre-discovered Areas 14 | . 1 1 3 1 . . . . 1 2 . . . . . . . . . 2 . . . . . 3 . . . . . . . Known Exits Taken 17 | . . 1 1 1 . 1 . . . . . . . . . . 1 1 . . . 1 1 1 1 1 1 1 1 1 1 1 . Unknown Exits Taken 14 | 1 1 . . . 1 . 1 1 1 1 . . 1 1 1 1 . . 1 1 1 . . . . . . . . . . . . Scrap Searched 21 | . . 1 . 2 . . 4 2 . 1 . . . . . . . . 2 2 . 1 . 2 3 . 1 . . . . . . Spaces Dug 254 | . . . . . 6 2 . . . 30 21 6 2 12 . . 17 22 4 4 5 1 27 9 1 . 2 5 14 . 31 33 . Terrain Destroyed 1350 | . 16 . 19 10 20 50 . 117 . 137 164 15 10 25 16 8 208 67 19 6 8 5 49 9 3 . 22 47 48 . 124 128 . Melee . | . . . . . . . . . . . . . . . . . . . . . . . . . . . . . . . . . . Projectile 411 | . . . . . . 4 . . . . 30 15 10 13 . 7 38 46 19 4 8 5 49 . 3 . 22 11 39 . 23 65 . AOE 938 | . 16 . 19 10 20 46 . 117 . 137 134 . . 12 16 . 170 21 . 2 . . . 9 . . . 36 9 . 101 63 . Terrain Rammed . | . . . . . . . . . . . . . . . . . . . . . . . . . . . . . . . . . . Walls Destroyed . | . . . . . . . . . . . . . . . . . . . . . . . . . . . . . . . . . . Machines Disabled . | . . . . . . . . . . . . . . . . . . . . . . . . . . . . . . . . . . Actions | -11 -10 -10 -9 -9 -8 -7 -7 -7 -7 -6 -6 -6 -6 -6 -6 -6 -6 -5 -5 -5 -5 -4 -4 -4 -4 -4 -3 -3 -3 -3 -2 -2 -1 --------- Run | Yrd Mat Min Mat Min Mat Fac Low Low Dat Pro Fac Was Fac Ext Cet Arc Hub Fac Upp Upp War Pro Fac Upp Upp Zhi Pro Res Arm Lab Res Tes Acc Total 26292 | 85 1122 1024 1437 1122 661 689 1650 486 772 535 1121 948 509 765 263 335 620 764 648 648 763 385 1188 540 212 190 350 739 1605 188 1978 1597 353 Wait 5125 | . 429 15 640 384 208 27 940 11 70 5 106 67 4 119 24 14 60 238 36 154 116 1 431 . 2 . 22 114 521 12 106 220 29 Move 18132 | 64 588 921 648 693 342 594 694 423 533 470 830 754 440 571 175 209 501 385 587 467 582 357 609 509 178 157 244 530 777 138 1706 1154 302 Hop . | . . . . . . . . . . . . . . . . . . . . . . . . . . . . . . . . . . Pick Up 357 | 8 15 6 25 3 10 10 2 4 50 1 27 35 7 5 6 3 . 13 3 2 4 3 9 2 5 2 4 12 45 10 10 14 2 Fast Attach 239 | 2 4 . 6 . 7 2 2 1 7 5 20 7 14 4 5 8 2 14 1 3 14 1 7 3 2 5 2 10 25 2 36 15 3 Attach 141 | 4 2 2 4 . 5 4 . 2 2 3 17 3 3 1 . 3 1 8 . 2 2 5 4 1 3 2 4 2 14 4 9 21 4 Detach 48 | . . . . . . . . 1 2 1 3 1 2 . 1 . . . . . 1 2 2 . 1 1 . 2 4 1 6 12 5 Swap 233 | . 6 2 7 2 13 8 5 9 12 6 11 2 3 12 9 . . 10 4 5 6 1 17 4 5 2 7 6 33 3 12 11 . Drop 439 | . 6 5 27 3 18 8 4 4 56 . 27 23 21 8 18 8 2 12 4 4 21 3 11 4 3 8 3 13 38 10 47 17 3 Fire 1426 | 7 70 67 69 28 58 36 3 31 23 44 79 56 14 31 25 90 53 84 13 11 17 12 98 17 13 . 64 47 109 8 46 102 1 Melee 30 | . . . . . . . . . 17 . . . . . . . . . . . . . . . . 13 . . . . . . . Ram 7 | . . . . . . . . . . . . . 1 . . . . . . . . . . . . . . . . . . 2 4 Kick 10 | . 2 6 . . . . . . . . . . . 2 . . . . . . . . . . . . . . . . . . . Crush 24 | . . . 11 9 . . . . . . . . . . . . 1 . . . . . . . . . . 3 . . . . . Escape Stasis 42 | . . . . . . . . . . . 1 . . 12 . . . . . . . . . . . . . . . . . 29 . Rewire 39 | . . . . . . . . . . . . . . . . . . . . . . . . . . . . . 39 . . . . Trap . | . . . . . . . . . . . . . . . . . . . . . . . . . . . . . . . . . . Miscellaneous . | . . . . . . . . . . . . . . . . . . . . . . . . . . . . . . . . . . Route ------- -11/Scrapyard -10/Materials (discovered 6 exits: *Mat x3 / *Min x2 / [*Sub]) -10/Mines (discovered 3 exits: *Mat x2 / [*Exi]) -9/Materials (discovered 4 exits: Mat x3 / *Min) -9/Mines (discovered 2 exits: *Mat x2) -8/Materials -7/Factory (discovered 3 exits: Sto / *Low x2) -7/Lower Caves -7/Lower Caves (discovered 2 exits: *Fac / *Dat) -7/Data Miner -6/Proximity Caves -6/Factory (discovered 2 exits: Fac / Low) -6/Waste -6/Factory -6/Extension (discovered 2 exits: *Fac / *Cet) -6/Cetus (discovered 2 exits: *Fac / [*Arc]) -6/Archives (discovered 2 exits: *Fac / *Hub) -6/Hub_04(d) (discovered 3 exits: *Fac x3) -5/Factory (discovered 3 exits: *Fac / *Upp x2) -5/Upper Caves -5/Upper Caves (discovered 2 exits: Fac / *War) -5/Warlord -4/Proximity Caves -4/Factory -4/Upper Caves -4/Upper Caves (discovered 2 exits: *Res / *Zhi) -4/Zhirov -3/Proximity Caves -3/Research -3/Armory -3/Lab -2/Research (discovered 3 exits: *Acc x2 / *Tes) -2/Testing -1/Access To Epsilon Eridani History --------- Turn | Location | Event 9 | -11/Scrapyard | Discovered new exit (range 14) 97 | -11/Scrapyard | Entered Materials 312 | -10/Materials | Build established: Mutant 480 | -10/Materials | Discovered new exit (range 16) 716 | -10/Materials | Discovered new exit (range 12) 744 | -10/Materials | Discovered new exit (range 8) 876 | -10/Materials | Discovered new exit (range 12) 957 | -10/Materials | Discovered new exit (range 16) 1369 | -10/Materials | Learned 4 Recycling zone layouts 1465 | -10/Materials | Learned 4 Subcaves zone layouts 1497 | -10/Materials | Learned 2 Mines zone layouts 1558 | -10/Materials | Loaded intel: 1 repair station location 1590 | -10/Materials | Identified exit to Materials 1771 | -10/Materials | Entered Mines 1811 | -10/Mines | Learned Materials garrison access intel 1994 | -10/Mines | Met a Derelict shopkeep closing up shop 2318 | -10/Mines | Learned location of Storage (-7) 2939 | -10/Mines | Deemed a non-threat by the Exiles lab entrance 2939 | -10/Mines | Discovered new exit (range 5) 3707 | -10/Mines | Entered Materials 3707 | -9/Materials | Evolved 2 slots: Propulsion x1, Utility x1 4322 | -9/Materials | Discovered new exit (range 8) 4462 | -9/Materials | Identified exit to Mines 5149 | -9/Materials | Loaded intel: 16 trap records 5291 | -9/Materials | Learned location of Zion (-6) 5350 | -9/Materials | Learned 4 Recycling zone layouts 5482 | -9/Materials | Learned 4 Recycling zone layouts 5539 | -9/Materials | Identified exit to Materials 5805 | -9/Materials | Entered Mines 5808 | -9/Mines | Received a Mining Laser from a helpful Derelict 5853 | -9/Mines | Found a hidden stash of uninstalled traps 5925 | -9/Mines | Learned location of Recycling (-7) 5932 | -9/Mines | Excavation squad dispatched 5932 | -9/Mines | A large section of the Mines collapsed 6182 | -9/Mines | Excavation squad dispatched 6432 | -9/Mines | Excavation squad dispatched 6682 | -9/Mines | Excavation squad dispatched 6932 | -9/Mines | Excavation squad dispatched 7008 | -9/Mines | Discovered exit to Materials (range 5) 7186 | -9/Mines | Found a Scrap Suit stashed away for nefarious purposes 7550 | -9/Mines | Discovered exit to Materials (range 10) 7965 | -9/Mines | Entered Materials 7965 | -8/Materials | Evolved 2 slots: Propulsion x1, Utility x1 7966 | -8/Materials | Loaded intel: 1 garrison access location 8015 | -8/Materials | Repaired Hrd. Medium Armor Plating 8046 | -8/Materials | Repaired Lgt. Treads 8349 | -8/Materials | Build established: Scavenger-Mutant 8779 | -8/Materials | Discovered new exit (range 12) 8801 | -8/Materials | Garrison activated, responded to threat 8925 | -8/Materials | Entered Factory 8925 | -7/Factory | Evolved 2 slots: Power x1, Utility x1 8926 | -7/Factory | Identified exit to Storage 9141 | -7/Factory | Fabricated B-48 Gladiator? 9257 | -7/Factory | Discovered new exit (range 4) 9370 | -7/Factory | Identified exit to Lower Caves 10258 | -7/Factory | Entered Lower Caves 10695 | -7/Lower Caves | Attracted the attention of an 0b10 checkpoint 10827 | -7/Lower Caves | Encountered a Warlord checkpoint 11753 | -7/Lower Caves | Spotted B-75 Beast 11955 | -7/Lower Caves | Learned Factory security intel 12004 | -7/Lower Caves | Learned location of 2 exits from Factory 12316 | -7/Lower Caves | Discovered new exit (range 13) 12332 | -7/Lower Caves | Entered another Lower Caves area 12385 | -7/Lower Caves | Discovered new exit (range 5) 12429 | -7/Lower Caves | Spotted B-75 Beast 12980 | -7/Lower Caves | Build established: Mutant 13012 | -7/Lower Caves | Discovered new exit (range 8) 13125 | -7/Lower Caves | Entered Data Miner 13125 | -7/Data Miner | Discovered new exit (range 6) 13155 | -7/Data Miner | Met Data Miner 13186 | -7/Data Miner | Learned location of Section 7 (-3) 13186 | -7/Data Miner | Acquired the access code to Warlord's prototype stash 13211 | -7/Data Miner | Received God Mode back door access code from Data Miner 13358 | -7/Data Miner | Data Conduit disabled 14447 | -7/Data Miner | System corruption reached 10% 14465 | -7/Data Miner | Entered Proximity Caves 14595 | -6/Proximity Caves | Learned location of Extension (-6) 14619 | -6/Proximity Caves | Attracted the attention of an 0b10 checkpoint 14737 | -6/Proximity Caves | Spotter reported a threat 14738 | -6/Proximity Caves | Build established: Scavenger-Mutant 14738 | -6/Proximity Caves | Spotter reported a threat 14832 | -6/Proximity Caves | System corruption reached 30% 14850 | -6/Proximity Caves | Spotter reported a threat 14876 | -6/Proximity Caves | Lost 3 parts (1p1u1w) 14925 | -6/Proximity Caves | Crushed by falling debris 14956 | -6/Proximity Caves | Lost 3 parts (1p1u1w) 15149 | -6/Proximity Caves | Discovered new exit (range 8) 15168 | -6/Proximity Caves | Entered Factory 15168 | -6/Factory | Evolved 2 slots: Utility x2 15169 | -6/Factory | Identified exit to Factory 15169 | -6/Factory | Identified exit to Lower Caves 16218 | -6/Factory | First assault squad dispatched 16400 | -6/Factory | Cargo convoy interrupted 16478 | -6/Factory | Lost 8 parts (1p2n4u1w) 16480 | -6/Factory | Found Prototype Launcher 16480 | -6/Factory | Identified Com. Tesla Bomb Launcher 16486 | -6/Factory | Found Prototype Device 16486 | -6/Factory | Identified Adv. Kinecellerator 16520 | -6/Factory | Found Com. Tesla Bomb Launcher 16581 | -6/Factory | Sucked down chute 16581 | -6/Factory | Entered Waste 16594 | -6/Waste | System corruption reached 10% 16599 | -6/Waste | Spotted C-40 Crusher 16752 | -6/Waste | Crushed by Compactor (1 part destroyed, 2 dropped) 16758 | -6/Waste | Spotted C-40 Crusher 16761 | -6/Waste | Spotted C-40 Crusher 16762 | -6/Waste | Spotted C-40 Crusher 16780 | -6/Waste | Spotted C-40 Crusher 16810 | -6/Waste | Warlord forces began an assault 16822 | -6/Waste | Allies destroyed C-40 Crusher 16841 | -6/Waste | Allies destroyed C-40 Crusher 16846 | -6/Waste | Allies destroyed C-40 Crusher 16877 | -6/Waste | Lost 3 allies 16973 | -6/Waste | Spotted C-40 Crusher 16986 | -6/Waste | Allies destroyed C-40 Crusher 17071 | -6/Waste | Build established: Mutant 17172 | -6/Waste | Discovered new exit (range 16) 17719 | -6/Waste | Identified exit to Factory 17909 | -6/Waste | Entered Factory 17909 | -6/Factory | Accompanied by 13 allies 18165 | -6/Factory | Build established: Scavenger-Mutant 18830 | -6/Factory | Lost 3 allies 18947 | -6/Factory | Discovered new exit (range 10) 18970 | -6/Factory | Entered Extension 18970 | -6/Extension | Accompanied by 9 allies 19039 | -6/Extension | Rescued a captive Derelict 19042 | -6/Extension | Rescued a captive Derelict 19267 | -6/Extension | Rescued a captive Derelict 19268 | -6/Extension | Rescued a captive Derelict 19308 | -6/Extension | Rescued A7 19445 | -6/Extension | Rescued a captive Derelict 19457 | -6/Extension | Rescued a captive Derelict 19617 | -6/Extension | Rescued a captive Derelict 19617 | -6/Extension | Rescued a captive Derelict 19618 | -6/Extension | Rescued a captive Derelict 20004 | -6/Extension | Spotted B-75 Beast 20015 | -6/Extension | Allies destroyed B-75 Beast 20033 | -6/Extension | Spotted B-75 Beast 20040 | -6/Extension | Allies destroyed B-75 Beast 20083 | -6/Extension | Lost 3 allies 20170 | -6/Extension | Disrupted transfer network 20190 | -6/Extension | Lost 3 allies 20318 | -6/Extension | Discovered new exit (range 15) 20320 | -6/Extension | Discovered exit to Factory (range 15) 20355 | -6/Extension | Entered Cetus 20355 | -6/Cetus | Accompanied by 9 allies (A7) 20360 | -6/Cetus | Acquired a Cetus Manufacturing Module code from A7 20381 | -6/Cetus | Spotted Cetus Guard 20381 | -6/Cetus | Spotted Cetus Guard 20382 | -6/Cetus | Spotted Cetus Guard 20383 | -6/Cetus | Spotted Cetus Guard 20388 | -6/Cetus | Destroyed Cetus Guard 20390 | -6/Cetus | Destroyed Cetus Guard 20393 | -6/Cetus | Destroyed Cetus Guard 20395 | -6/Cetus | Destroyed Cetus Guard 20482 | -6/Cetus | Started Cetus Manufacturing Module 20501 | -6/Cetus | Discovered new exit (range 16) 20507 | -6/Cetus | Manufactured an Enhanced Grunt 20529 | -6/Cetus | Spotted Cetus Guard 20529 | -6/Cetus | Spotted Cetus Guard 20531 | -6/Cetus | Spotted Cetus Guard 20531 | -6/Cetus | Spotted Cetus Guard 20532 | -6/Cetus | Manufactured an Enhanced Grunt 20536 | -6/Cetus | Allies destroyed Cetus Guard 20538 | -6/Cetus | Destroyed Cetus Guard 20540 | -6/Cetus | Destroyed Cetus Guard 20544 | -6/Cetus | Destroyed Cetus Guard 20550 | -6/Cetus | Discovered exit to Factory (range 16) 20557 | -6/Cetus | Manufactured an Enhanced Grunt 20560 | -6/Cetus | Met Revision 17 20568 | -6/Cetus | System corruption reached 30% 20582 | -6/Cetus | Manufactured an Enhanced Grunt 20607 | -6/Cetus | Manufactured an Enhanced Grunt 20681 | -6/Cetus | Murdered A7 20711 | -6/Cetus | Extracted ID and sensor layout for unrecognized location from A7's data core 20715 | -6/Cetus | Found Corrupted Prototype Protection 20751 | -6/Cetus | Entered Archives 20751 | -6/Archives | Accompanied by 9 allies 20798 | -6/Archives | Discovered new exit (range 16) 21236 | -6/Archives | Discovered exit to Factory (range 15) 21336 | -6/Archives | Entered Hub_04(d) 21336 | -6/Hub_04(d) | Accompanied by 7 allies 21427 | -6/Hub_04(d) | Discovered exit to Factory (range 7) 21687 | -6/Hub_04(d) | Discovered exit to Factory (range 15) 22092 | -6/Hub_04(d) | Discovered exit to Factory (range 5) 22242 | -6/Hub_04(d) | Network Hub disabled 22276 | -6/Hub_04(d) | Spotted Lightning 22278 | -6/Hub_04(d) | Core integrity fell below 50% 22278 | -6/Hub_04(d) | Spotted Lightning 22279 | -6/Hub_04(d) | Spotted Lightning 22289 | -6/Hub_04(d) | Network Hub disabled 22314 | -6/Hub_04(d) | Entered Factory 22314 | -5/Factory | Evolved 2 slots: Utility x2 22316 | -5/Factory | System corruption reached 10% 22316 | -5/Factory | Identified Med. Regenerative Plating 22319 | -5/Factory | Lost 4 parts (2u2w) 22388 | -5/Factory | Identified exit to Upper Caves 22435 | -5/Factory | Discovered new exit (range 5) 22609 | -5/Factory | Repaired Broken Centrium Heavy Treads 23033 | -5/Factory | Destroyed 9 combat bots 23102 | -5/Factory | Repaired Centrium Medium Armor Plating 23157 | -5/Factory | Repaired Centrium Heavy Treads 23214 | -5/Factory | First assault squad dispatched 23429 | -5/Factory | Entered Upper Caves 23567 | -5/Upper Caves | Spotted B-75 Beast 24326 | -5/Upper Caves | Discovered new exit (range 10) 24456 | -5/Upper Caves | Entered another Upper Caves area 24769 | -5/Upper Caves | Learned Research security intel 24769 | -5/Upper Caves | Learned location of 1 exit from Factory 24769 | -5/Upper Caves | Learned location of Armory (-3) 24842 | -5/Upper Caves | Identified exit to Factory 25338 | -5/Upper Caves | Discovered new exit (range 6) 25401 | -5/Upper Caves | Entered Warlord 25460 | -5/Warlord | System corruption cleaned by Quarantine Array 25692 | -5/Warlord | Visited the Vortex Lab 25699 | -5/Warlord | Found Prototype Energy Gun 25699 | -5/Warlord | Identified Vortex Rail 25705 | -5/Warlord | Warlord's base attacked by MAIN.C 25708 | -5/Warlord | Found Prototype Piercing Weapon 25708 | -5/Warlord | Identified Vortex Lance 25877 | -5/Warlord | Opened Warlord's prototype stash 25886 | -5/Warlord | Found Prototype Device 25886 | -5/Warlord | Identified Exp. Cloaking Device 25900 | -5/Warlord | Found Prototype Device 25900 | -5/Warlord | Identified System Purifier 25903 | -5/Warlord | Found Prototype Processor 25903 | -5/Warlord | Identified Spectral Analyzer 25917 | -5/Warlord | Found Prototype Reactor 25974 | -5/Warlord | Met Warlord 26055 | -5/Warlord | Warlord forces counterattacked 26067 | -5/Warlord | Spotted Striker 26072 | -5/Warlord | P-70 Sage assimilated allied P0-W1P(M) 26137 | -5/Warlord | Spotted B-86 Titan 26232 | -5/Warlord | Lost 13 allies 26281 | -5/Warlord | Spotted Executioner 26343 | -5/Warlord | Lost 15 allies 26380 | -5/Warlord | Warlord base infiltrated, sounded retreat 26438 | -5/Warlord | Spotted B-86 Titan 26470 | -5/Warlord | Discovered new exit (range 22) 26471 | -5/Warlord | Spotted Striker 26505 | -5/Warlord | Spotted Executioner 26505 | -5/Warlord | Spotted B-75 Beast 26515 | -5/Warlord | Spotted B-86 Titan 26529 | -5/Warlord | Entered Proximity Caves 26532 | -4/Proximity Caves | Spotter reported a threat 26532 | -4/Proximity Caves | Spotter reported a threat 26796 | -4/Proximity Caves | Discovered exit to Factory (range 13) 26996 | -4/Proximity Caves | Spotter reported a threat 27140 | -4/Proximity Caves | Entered Factory 27140 | -4/Factory | Evolved 2 slots: Utility x2 27141 | -4/Factory | Identified exit to Upper Caves 27720 | -4/Factory | Repaired Centrium Heavy Treads 27899 | -4/Factory | Build established: Scavenger-Skirmisher 28133 | -4/Factory | Spotted B-86 Titan 28390 | -4/Factory | First assault squad dispatched 28416 | -4/Factory | System corruption reached 10% 28561 | -4/Factory | Spotted B-86 Titan 28812 | -4/Factory | Entered Upper Caves 29343 | -4/Upper Caves | Discovered new exit (range 5) 29659 | -4/Upper Caves | Identified exit to Upper Caves 29676 | -4/Upper Caves | Entered another Upper Caves area 29720 | -4/Upper Caves | Discovered new exit (range 9) 29998 | -4/Upper Caves | Discovered new exit (range 7) 30006 | -4/Upper Caves | Identified exit to Zhirov 30009 | -4/Upper Caves | Entered Zhirov 30012 | -4/Zhirov | Discovered new exit (range 3) 30040 | -4/Zhirov | Met Zhirov 30078 | -4/Zhirov | Found Alien Artifact 30078 | -4/Zhirov | Identified Integrated Dissipator 30078 | -4/Zhirov | Installed Integrated Dissipator, increased core heat dissipation (+20) 30100 | -4/Zhirov | Found Alien Artifact 30247 | -4/Zhirov | Learned location of Command (-1) 30247 | -4/Zhirov | Learned location of Testing (-2) 30247 | -4/Zhirov | Learned location of Quarantine (-3) 30261 | -4/Zhirov | Zhirov requested help retrieving the SGEMP Prototype 30303 | -4/Zhirov | Identified exit to Proximity Caves 30307 | -4/Zhirov | Entered Proximity Caves 30397 | -3/Proximity Caves | Spotter reported a threat 30436 | -3/Proximity Caves | Spotter reported a threat 30450 | -3/Proximity Caves | Spotter reported a threat 30494 | -3/Proximity Caves | Spotter reported a threat 30506 | -3/Proximity Caves | Spotter reported a threat 30559 | -3/Proximity Caves | Spotter reported a threat 30591 | -3/Proximity Caves | Spotter reported a threat 30634 | -3/Proximity Caves | Spotter reported a threat 30727 | -3/Proximity Caves | Lost 3 parts (1p1u1w) 30798 | -3/Proximity Caves | Discovered new exit (range 14) 30855 | -3/Proximity Caves | Identified exit to Research 30857 | -3/Proximity Caves | Entered Research 30857 | -3/Research | Evolved 2 slots: Propulsion x2 30858 | -3/Research | Identified exit to Armory 30972 | -3/Research | Found Fusion Bomb Launcher 31057 | -3/Research | Revision forces began assault on 0b10 31103 | -3/Research | Met up with Revision 17++ 31369 | -3/Research | Spotted B-86 Titan 31557 | -3/Research | Research terminal network offline 31700 | -3/Research | Spotted B-90 Cyclops 31869 | -3/Research | Found Prototype Device 31869 | -3/Research | Identified Exp. Thermal Defense Suite 31890 | -3/Research | Spotted Striker 31893 | -3/Research | Spotted Striker 31931 | -3/Research | Destroyed Striker 31934 | -3/Research | Destroyed Striker 31955 | -3/Research | Destroyed 7 combat bots 31973 | -3/Research | Entered Armory 32957 | -3/Armory | Found Prototype Device 32957 | -3/Armory | Identified Exp. Terrain Scanner 33091 | -3/Armory | Identified Transdimensional Reconstructor 33091 | -3/Armory | Warped through subspace to slip node 33091 | -3/Armory | Discovered new exit (range 1) 33091 | -3/Armory | Identified exit to Lab 33225 | -3/Armory | Fabricated Com. HERF Cannon? 33318 | -3/Armory | System corruption reached 10% 33591 | -3/Armory | Spotted B-86 Titan 33623 | -3/Armory | Spotted Armor Guard 33623 | -3/Armory | Spotted Armor Guard 33633 | -3/Armory | Destroyed Armor Guard 33642 | -3/Armory | Destroyed Armor Guard 33662 | -3/Armory | Found Corrupted Prototype Device 33794 | -3/Armory | Lost 8 parts (2p2n3u1w) 33973 | -3/Armory | Fabricated Exp. Heat Sink? 33990 | -3/Armory | Entered Lab 33993 | -3/Lab | Discovered new exit (range 9) 33997 | -3/Lab | Identified exit to Research 33998 | -3/Lab | Hidden lab's door opened automatically 33998 | -3/Lab | Sensor layout match revealed 33999 | -3/Lab | Gained access to the hidden lab's interior 34011 | -3/Lab | Found Alien Artifact 34029 | -3/Lab | Found Transdimensional Reconstructor 34031 | -3/Lab | Found Alien Artifact 34031 | -3/Lab | Identified Integrated Mediator 34031 | -3/Lab | Installed Integrated Mediator, increased core attachment efficiency 34034 | -3/Lab | Found Alien Artifact 34035 | -3/Lab | Identified Core Regenerator 34035 | -3/Lab | Used Core Regenerator, restored core integrity (+325) 34063 | -3/Lab | Found Prototype Hackware 34064 | -3/Lab | Found Prototype Protection 34070 | -3/Lab | Found Prototype Energy Cannon 34091 | -3/Lab | Identified Hvy. Regenerative Plating 34122 | -3/Lab | Entered Research 34122 | -2/Research | Warlord forces began assault on 0b10 34122 | -2/Research | Evolved 2 slots: Propulsion x2 34153 | -2/Research | Spotted B-90 Cyclops 34205 | -2/Research | Met up with Warlord 34232 | -2/Research | Research machine network offline 34332 | -2/Research | Found Prototype Processor 34332 | -2/Research | Identified Exp. Core Analyzer 34482 | -2/Research | Identified Quantum Router 34563 | -2/Research | Discovered new exit (range 8) 34609 | -2/Research | Found Prototype Device 34609 | -2/Research | Identified Exp. Shock Absorption System 34631 | -2/Research | Borebot progress halted 34691 | -2/Research | Found Unknown Device 34691 | -2/Research | Identified Launcher Loader 34700 | -2/Research | Spotted Executioner 34709 | -2/Research | Found Exp. Core Analyzer 34775 | -2/Research | Build established: Hacker-Scout 34802 | -2/Research | Spotted Executioner 34809 | -2/Research | Borebot progress halted 34897 | -2/Research | Spotted Striker 34936 | -2/Research | Spotted Striker 34942 | -2/Research | Spotted Executioner 34979 | -2/Research | Lost 14 allies 34979 | -2/Research | Discovered new exit (range 11) 34984 | -2/Research | Identified exit to Access 34990 | -2/Research | Spotted B-90 Cyclops 35026 | -2/Research | Spotted Striker 35031 | -2/Research | Spotted Striker 35068 | -2/Research | Discovered new exit (range 6) 35070 | -2/Research | Identified exit to Testing 35107 | -2/Research | Entered Testing 35138 | -2/Testing | Spotted PY-E8S5KRD882 35199 | -2/Testing | Discovered exit to Access (range 21) 35212 | -2/Testing | Found Prototype Energy Cannon 35212 | -2/Testing | Identified Potential Cannon (x2) 35214 | -2/Testing | Found Prototype Energy Cannon 35214 | -2/Testing | Identified Imp. Potential Cannon 35303 | -2/Testing | Spotted PY-84PGOEWP30 35492 | -2/Testing | Protovariant out of control (PY-E8S5KRD882) 35492 | -2/Testing | Unleashed a protovariant (PY-E8S5KRD882) 35516 | -2/Testing | Scanned by Researcher 35537 | -2/Testing | Warped through subspace 35728 | -2/Testing | Spotted Investigator 35734 | -2/Testing | Identified Exp. Weapon Cycler 35737 | -2/Testing | Destroyed Investigator 35751 | -2/Testing | System corruption reached 10% 35754 | -2/Testing | Identified Vortex Chain Reactor 35811 | -2/Testing | Lost 7 parts (2p1n4u) 35812 | -2/Testing | Destroyed 15 combat bots 35844 | -2/Testing | Found Prototype Hackware 35844 | -2/Testing | Identified Exp. System Shield 35849 | -2/Testing | Found Exp. Core Analyzer 35970 | -2/Testing | Found Prototype Device 35970 | -2/Testing | Identified Exp. Transmission Jammer 35986 | -2/Testing | Spotted Striker 35987 | -2/Testing | Spotted Striker 36006 | -2/Testing | Found Prototype Device 36006 | -2/Testing | Identified Exp. EM Shield 36056 | -2/Testing | Found Hvy. Regenerative Plating 36074 | -2/Testing | Found Prototype Protection 36150 | -2/Testing | Lost 3 parts (2u1w) 36247 | -2/Testing | Lost 3 parts (1p1n1u) 36262 | -2/Testing | Entered Access 36262 | -1/Access | Evolved 2 slots: Utility x2 36371 | -1/Access | Identified SHELL Armor 36381 | -1/Access | System corruption reached 10% 36394 | -1/Access | Spotted B-99 Colossus 36410 | -1/Access | Lost 5 parts (3n2u) 36412 | -1/Access | Build established: Hacker-Mutant 36413 | -1/Access | Spotted B-99 Colossus 36419 | -1/Access | Spotted B-99 Colossus 36446 | -1/Access | Discovered new exit (range 4) 36447 | -1/Access | Identified exit to Surface 36448 | *** | Escaped! Last Messages --------------- 36435_ Penetrated by Slug. 36440_ Acquired 2 matter. 36440_ Main Access Shell breached. 36440_ Imp. Antigrav System melted. 36440_ P-80 Master destroyed. 36440_ Slug penetrates Sealed Heavy Doors. 36440_ Knocked back. 36440_ Penetrated by Slug. 36440_ Slug penetrates Reinforced Barrier. 36440_ Penetrated by Slug. 36440_ Slug penetrates Reinforced Barrier. 36443_ Dropped Particle Reactor. 36443_ Dropped Quantum Reactor. 36444_ Dropped SHELL Armor. 36444_ Acquired 3 matter. 36445_ Slug penetrates Sealed Heavy Doors. 36445_ Cmb. Linear Gravjet destroyed. 36446_ Quantum Router destroyed. 36446_ EXIT=FOUND 36447_ EXIT=IDENTIFIED: SURFACE Map ----- +----------------------------------------------------+ | ??????????????????????# %"""""" "" ?? | | ??????????????????????# """""" G ???? | | ??????????????????????# """""" "" ?? | | ??????????????????????# """""" " | | ??????????????????????# | | ??????????????????????# | | ??????????????????????/% | | ??????????????????????# ######################? | | ??????????????????????# # #???????????????????? | | ???????????????????#### "###??????????????????? | | ???????????????????# #??????????????????? | | ???????????????????# #??????????????????? | | ???????????????????# % #??????????????????? | | ???????????????????# % #??????????????????? | | ???????????????????# #??????????????????? | | ???????????????????# % #??????????????????? | | ???????????????????# %% #??????????????????? | | ???????????????????#""""%*""""#??????????????????? | | ???????????????????????" "????????????????????? | | ???????????????????????"" "????????????????????? | | ???????????????????#"""" ""#??????????????????? | | ???????????????????# **#??????????????????? | | ???????????????????# "" """! #??????????????????? | | ???????????????????# ?" " #??????????????????? | | ??????????????????????" "" " #??????????????????? | | ??????????????????????" "@ " #??????????????????? | | ??????????????????????" " #??????????????????? | | ??????????????????????"""""" #??????????????????? | | ??????????????????????????? #??????????????????? | | ??????????????????????????? #??????????????????? | | ???????????????????????????""""??????????????????? | | ?????????????????????????????????????????????????? | | ?????????????????????????????????????????????????? | | ?????????????????????????????????????????????????? | | ?????????????????????????????????????????????????? | | ?????????????????????????????????????????????????? | | ?????????????????????????????????????????????????? | | ?????????????????????????????????????????????????? | | ?????????????????????????????????????????????????? | | ????????????????H????????????????????????????????? | | ?????????????????????????????????????????????????? | | ?????????????????????????????????????????????????? | | ?????????????????????????????????????????????????? | | ?????????????????????????????????????????????????? | | ?????????????????????????????????????????????????? | | ?????????????????????????????????????????????????? | | ?????????????????????????????????????????????????? | | ?????????????????????????????????????????????????? | | ?????????????????????????????????????????????????? | | ?????????????????????????????????????????????????? | +----------------------------------------------------+ Best States ------------- Heat Dissipation 156 Coolant Potential 80 Energy Generation 57 Energy Capacity 1600 Matter Stores 300 Matter Capacity 300 Sight Range 24 Robot Scan Range 16 Terrain Scan Range 30 Terrain Scan Density 10 ECM Strength 2 Jamming Range 22 Cloak Strength 4 Power Amplification 30 Armor Coverage 1650 Resistance: EX 75 Weapon Cycling 30 Phase Shifting 15 Evasion (%) 83 Targeting Accuracy 5 Core Analysis 12 Recoil Reduction 6 Matter Filtering 50 Particle Charging 20 Offensive Hacking 24 Defensive Hacking 41 Authchip Count 4 Item Schematics ----------------- Combat Drone Bay | -7/Data Miner | Free Lgt. Regenerative Plating | -7/Data Miner | Free Multireflex Exoskeleton | -7/Data Miner | Free Exp. Utility Shielding | -7/Data Miner | Free Imp. Heavy Laser | -7/Data Miner | Free Hvy. Treads | -7/Data Miner | Free Imp. Kinecellerator | -7/Data Miner | Free Linear Gravjet | -7/Data Miner | Free Lrn. Proton Cannon | -7/Data Miner | Free Shield Leg | -7/Data Miner | Free Myomer Leg | -7/Data Miner | Free Nova Cannon | -4/Factory | Hacked Com. HERF Cannon | -4/Factory | Hacked Imp. Arc Thrower | -4/Zhirov | Free Exp. Optical Array | -4/Zhirov | Free Exp. Heat Sink | -4/Zhirov | Free Assault Drone Bay | -4/Zhirov | Free Lgt. Quantum Reactor | -2/Research | Hacked Imp. Diametric Drive | -2/Testing | Archive Adv. Dynamic Insulation System | -2/Testing | Archive Imp. Q-thruster | -2/Testing | Archive Hvy. Proton Cannon | -2/Testing | Archive Hellfire Missile Launcher | -2/Testing | Archive Robot Schematics ------------------ G-47 Trooper | -7/Data Miner | Free A-15 Conveyor | -7/Data Miner | Free M-22 Extractor | -7/Data Miner | Free Fabricated ------------ B-48 Gladiator | x3 | -7/Factory | Preloaded Com. HERF Cannon | x1 | -3/Armory | Authchip Exp. Heat Sink | x1 | -3/Armory | Authchip Repaired ---------- Hrd. Medium Armor Plating | 30% | -8/Materials Lgt. Treads | 39% | -8/Materials Centrium Heavy Treads | 46% | -5/Factory | Broken Centrium Medium Armor Plating | 27% | -5/Factory Centrium Heavy Treads | 25% | -5/Factory Centrium Heavy Treads | 37% | -4/Factory Alien Tech Used ----------------- Integrated Dissipator Transdimensional Reconstructor Integrated Mediator Core Regenerator Achievements -------------- Rampage Treasure Hunter Challenges ------------ None Game ------ Seed DataSupercompositeBasin Manual? 0 Play Time 06:03:25 Cumulative 298.5 hours Start 2025.09.05 @ 10:25:13 End 2025.09.24 @ 16:05:58 Sessions 7 Manual Loads 0 Difficulty Rogue Special Mode None Game No. 212 Rogue 212 Adventurer 0 Explorer 0 Win Type 0 Total 18 Types 9/0/5/1/1/0/0/1/0/1 Lore% 79 Gallery% 76 Achievement% 77 Wizard Run 0 Options --------- Layout 1 ASCII 0 Keyboard 0 Movement Mouse Keybinds 0 Fullscreen 2 Font 24/Smallcaps Map View 50x35 Zoom Use 0% Tactical HUD 1 Map Filters NONE Filters NONE Steam 1 RUN: 4163872d-edfa-44ec-84d4-5062b161e00a